Workbook

Sheet Лист1
A1: Договор №: | D1: Наименование организации: | H1: Срок действия договора: | K1: 3 | M1: ОБЩАЯ СУММА ДОЛГА
H2: с | I2: по | M2: =TEXT(TODAY(),"ДД.ММ.ГГГГ") -> 26.05.2015 | N2: =TEXT(INDIRECT(ADDRESS(COUNTA(A6:A65000)+5,1)),"ДД.ММ.ГГГГ") -> 31.05.2015
H3: 2015-01-01 | M3: =IF(M2<N2,INDIRECT(ADDRESS(MATCH(TODAY(),A6:A65000,0)+5,21)),"") -> 0 | N3: =INDIRECT(ADDRESS(COUNTA(A6:A65000)+5,21)) -> 0
A5: Дата | B5: Дней в году | C5: Дней в месяце | D5: Остаток основного долга | E5: Сумма процентов за пользованием займом | F5: Сумма процентов за пользование займом за день | G5: Ставка займа, % | H5: Изменение ставки займа | I5: Сумма перечисленного займа | J5: Погашение основного долга | K5: Погашение процентов | O5: Изменение % пени | P5: Погашение суммы начисленной пени | Q5: Сумма начисленных процентов по ставке рефинансирования | R5: % по ставке рефинансирования | S5: Изменение % по ставке рефинансирования | T5: Погашение суммы начисленных процентов по ставке рефинансирования | U5: Общая сумма долга | V5: I'M INVISIBLE!!! | W5: ME TOO lololo | X5: Сальдо | AA5: Всего перечислено за месяц | AB5: Всего погашено за месяц
A6: =$H$3 -> 2015-01-01 | B6: =IF($K$1 > 1, 360, DAY(DATE(YEAR(A6),3,0))+337) -> 360 | C6: =IF($K$1 = 2,30,36-DAY(A6+36-DAY(A6))) -> 31 | D6: =I6-J6 -> 100000 | E6: =D6*G6/B6/100-K6 -> 13.88888889 | F6: =D6*G6/B6/100 -> 13.88888889 | G6: =H6 -> 5 | H6: 5 | I6: 100000 | V6: =DAY($A6) -> 1
A7: =IF($K$1=2,IF(SUMPRODUCT(--(MONTH($A$6:A6)=MONTH(A6)))=30,EOMONTH(A6,0)+1,IF(AND(MONTH(A6)=2,DAY(A6)=DAY(DATE(YEAR(A6),3,0))),A6,A6+1)),A6+1) -> 2015-01-02 | B7: =IF($K$1 > 1, 360, DAY(DATE(YEAR(A7),3,0))+337) -> 360 | C7: =IF($K$1 = 2,30,36-DAY(A7+36-DAY(A7))) -> 31 | D7: =D6+I7-J7 -> 90000 | E7: =E6+D7*G7/B7/100-K7 -> 26.38888889 | F7: =D7*G7/B7/100 -> 12.5 | G7: =IF(ISNUMBER(H7),H7,G6) -> 5 | J7: 10000 | V7: =IF(V6<30,V6+1,1) -> 2 | W7: =EDATE($A6,1) -> 2015-02-01
A8: =IF($K$1=2,IF(SUMPRODUCT(--(MONTH($A$6:A7)=MONTH(A7)))=30,EOMONTH(A7,0)+1,IF(AND(MONTH(A7)=2,DAY(A7)=DAY(DATE(YEAR(A7),3,0))),A7,A7+1)),A7+1) -> 2015-01-03 | B8: =IF($K$1 > 1, 360, DAY(DATE(YEAR(A8),3,0))+337) -> 360 | C8: =IF($K$1 = 2,30,36-DAY(A8+36-DAY(A8))) -> 31 | D8: =D7+I8-J8 -> 90000 | E8: =E7+D8*G8/B8/100-K8 -> 38.88888889 | F8: =D8*G8/B8/100 -> 12.5 | G8: =IF(ISNUMBER(H8),H8,G7) -> 5 | V8: =IF(V7<30,V7+1,1) -> 3 | W8: =EDATE($A7,1) -> 2015-02-02
A9: =IF($K$1=2,IF(SUMPRODUCT(--(MONTH($A$6:A8)=MONTH(A8)))=30,EOMONTH(A8,0)+1,IF(AND(MONTH(A8)=2,DAY(A8)=DAY(DATE(YEAR(A8),3,0))),A8,A8+1)),A8+1) -> 2015-01-04 | B9: =IF($K$1 > 1, 360, DAY(DATE(YEAR(A9),3,0))+337) -> 360 | C9: =IF($K$1 = 2,30,36-DAY(A9+36-DAY(A9))) -> 31 | D9: =D8+I9-J9 -> 90000 | E9: =E8+D9*G9/B9/100-K9 -> 51.38888889 | F9: =D9*G9/B9/100 -> 12.5 | G9: 5 | V9: 4 | W9: 2015-02-03
A10: =IF($K$1=2,IF(SUMPRODUCT(--(MONTH($A$6:A9)=MONTH(A9)))=30,EOMONTH(A9,0)+1,IF(AND(MONTH(A9)=2,DAY(A9)=DAY(DATE(YEAR(A9),3,0))),A9,A9+1)),A9+1) -> 2015-01-05 | B10: =IF($K$1 > 1, 360, DAY(DATE(YEAR(A10),3,0))+337) -> 360 | C10: =IF($K$1 = 2,30,36-DAY(A10+36-DAY(A10))) -> 31 | D10: =D9+I10-J10 -> 90000 | E10: =E9+D10*G10/B10/100-K10 -> 63.88888889 | F10: =D10*G10/B10/100 -> 12.5 | G10: 5 | V10: 5 | W10: 2015-02-04
A11: =IF($K$1=2,IF(SUMPRODUCT(--(MONTH($A$6:A10)=MONTH(A10)))=30,EOMONTH(A10,0)+1,IF(AND(MONTH(A10)=2,DAY(A10)=DAY(DATE(YEAR(A10),3,0))),A10,A10+1)),A10+1) -> 2015-01-06 | B11: =IF($K$1 > 1, 360, DAY(DATE(YEAR(A11),3,0))+337) -> 360 | C11: =IF($K$1 = 2,30,36-DAY(A11+36-DAY(A11))) -> 31 | D11: =D10+I11-J11 -> 90000 | E11: =E10+D11*G11/B11/100-K11 -> 76.38888889 | F11: =D11*G11/B11/100 -> 12.5 | G11: 5 | V11: 6 | W11: 2015-02-05
A12: =IF($K$1=2,IF(SUMPRODUCT(--(MONTH($A$6:A11)=MONTH(A11)))=30,EOMONTH(A11,0)+1,IF(AND(MONTH(A11)=2,DAY(A11)=DAY(DATE(YEAR(A11),3,0))),A11,A11+1)),A11+1) -> 2015-01-07 | B12: =IF($K$1 > 1, 360, DAY(DATE(YEAR(A12),3,0))+337) -> 360 | C12: =IF($K$1 = 2,30,36-DAY(A12+36-DAY(A12))) -> 31 | D12: =D11+I12-J12 -> 90000 | E12: =E11+D12*G12/B12/100-K12 -> 88.88888889 | F12: =D12*G12/B12/100 -> 12.5 | G12: 5 | V12: 7 | W12: 2015-02-06
A13: =IF($K$1=2,IF(SUMPRODUCT(--(MONTH($A$6:A12)=MONTH(A12)))=30,EOMONTH(A12,0)+1,IF(AND(MONTH(A12)=2,DAY(A12)=DAY(DATE(YEAR(A12),3,0))),A12,A12+1)),A12+1) -> 2015-01-08 | B13: =IF($K$1 > 1, 360, DAY(DATE(YEAR(A13),3,0))+337) -> 360 | C13: =IF($K$1 = 2,30,36-DAY(A13+36-DAY(A13))) -> 31 | D13: =D12+I13-J13 -> 90000 | E13: =E12+D13*G13/B13/100-K13 -> 101.3888889 | F13: =D13*G13/B13/100 -> 12.5 | G13: 5 | V13: 8 | W13: 2015-02-07
A14: =IF($K$1=2,IF(SUMPRODUCT(--(MONTH($A$6:A13)=MONTH(A13)))=30,EOMONTH(A13,0)+1,IF(AND(MONTH(A13)=2,DAY(A13)=DAY(DATE(YEAR(A13),3,0))),A13,A13+1)),A13+1) -> 2015-01-09 | B14: =IF($K$1 > 1, 360, DAY(DATE(YEAR(A14),3,0))+337) -> 360 | C14: =IF($K$1 = 2,30,36-DAY(A14+36-DAY(A14))) -> 31 | D14: =D13+I14-J14 -> 90000 | E14: =E13+D14*G14/B14/100-K14 -> 113.8888889 | F14: =D14*G14/B14/100 -> 12.5 | G14: 5 | V14: 9 | W14: 2015-02-08
A15: =IF($K$1=2,IF(SUMPRODUCT(--(MONTH($A$6:A14)=MONTH(A14)))=30,EOMONTH(A14,0)+1,IF(AND(MONTH(A14)=2,DAY(A14)=DAY(DATE(YEAR(A14),3,0))),A14,A14+1)),A14+1) -> 2015-01-10 | B15: =IF($K$1 > 1, 360, DAY(DATE(YEAR(A15),3,0))+337) -> 360 | C15: =IF($K$1 = 2,30,36-DAY(A15+36-DAY(A15))) -> 31 | D15: =D14+I15-J15 -> 90000 | E15: =E14+D15*G15/B15/100-K15 -> 126.3888889 | F15: =D15*G15/B15/100 -> 12.5 | G15: 5 | V15: 10 | W15: 2015-02-09
A16: =IF($K$1=2,IF(SUMPRODUCT(--(MONTH($A$6:A15)=MONTH(A15)))=30,EOMONTH(A15,0)+1,IF(AND(MONTH(A15)=2,DAY(A15)=DAY(DATE(YEAR(A15),3,0))),A15,A15+1)),A15+1) -> 2015-01-11 | B16: =IF($K$1 > 1, 360, DAY(DATE(YEAR(A16),3,0))+337) -> 360 | C16: =IF($K$1 = 2,30,36-DAY(A16+36-DAY(A16))) -> 31 | D16: =D15+I16-J16 -> 90000 | E16: =E15+D16*G16/B16/100-K16 -> 138.8888889 | F16: =D16*G16/B16/100 -> 12.5 | G16: 5 | V16: 11 | W16: 2015-02-10
A17: =IF($K$1=2,IF(SUMPRODUCT(--(MONTH($A$6:A16)=MONTH(A16)))=30,EOMONTH(A16,0)+1,IF(AND(MONTH(A16)=2,DAY(A16)=DAY(DATE(YEAR(A16),3,0))),A16,A16+1)),A16+1) -> 2015-01-12 | B17: =IF($K$1 > 1, 360, DAY(DATE(YEAR(A17),3,0))+337) -> 360 | C17: =IF($K$1 = 2,30,36-DAY(A17+36-DAY(A17))) -> 31 | D17: =D16+I17-J17 -> 90000 | E17: =E16+D17*G17/B17/100-K17 -> 151.3888889 | F17: =D17*G17/B17/100 -> 12.5 | G17: 5 | V17: 12 | W17: 2015-02-11
A18: =IF($K$1=2,IF(SUMPRODUCT(--(MONTH($A$6:A17)=MONTH(A17)))=30,EOMONTH(A17,0)+1,IF(AND(MONTH(A17)=2,DAY(A17)=DAY(DATE(YEAR(A17),3,0))),A17,A17+1)),A17+1) -> 2015-01-13 | B18: =IF($K$1 > 1, 360, DAY(DATE(YEAR(A18),3,0))+337) -> 360 | C18: =IF($K$1 = 2,30,36-DAY(A18+36-DAY(A18))) -> 31 | D18: =D17+I18-J18 -> 90000 | E18: =E17+D18*G18/B18/100-K18 -> 163.8888889 | F18: =D18*G18/B18/100 -> 12.5 | G18: 5 | V18: 13 | W18: 2015-02-12
A19: =IF($K$1=2,IF(SUMPRODUCT(--(MONTH($A$6:A18)=MONTH(A18)))=30,EOMONTH(A18,0)+1,IF(AND(MONTH(A18)=2,DAY(A18)=DAY(DATE(YEAR(A18),3,0))),A18,A18+1)),A18+1) -> 2015-01-14 | B19: =IF($K$1 > 1, 360, DAY(DATE(YEAR(A19),3,0))+337) -> 360 | C19: =IF($K$1 = 2,30,36-DAY(A19+36-DAY(A19))) -> 31 | D19: =D18+I19-J19 -> 90000 | E19: =E18+D19*G19/B19/100-K19 -> 176.3888889 | F19: =D19*G19/B19/100 -> 12.5 | G19: 5 | V19: =IF(V18<30,V18+1,1) -> 14 | W19: 2015-02-13
A20: =IF($K$1=2,IF(SUMPRODUCT(--(MONTH($A$6:A19)=MONTH(A19)))=30,EOMONTH(A19,0)+1,IF(AND(MONTH(A19)=2,DAY(A19)=DAY(DATE(YEAR(A19),3,0))),A19,A19+1)),A19+1) -> 2015-01-15 | B20: =IF($K$1 > 1, 360, DAY(DATE(YEAR(A20),3,0))+337) -> 360 | C20: =IF($K$1 = 2,30,36-DAY(A20+36-DAY(A20))) -> 31 | D20: =D19+I20-J20 -> 90000 | E20: =E19+D20*G20/B20/100-K20 -> 188.8888889 | F20: =D20*G20/B20/100 -> 12.5 | G20: 5 | V20: 15 | W20: 2015-02-14
A21: =IF($K$1=2,IF(SUMPRODUCT(--(MONTH($A$6:A20)=MONTH(A20)))=30,EOMONTH(A20,0)+1,IF(AND(MONTH(A20)=2,DAY(A20)=DAY(DATE(YEAR(A20),3,0))),A20,A20+1)),A20+1) -> 2015-01-16 | B21: =IF($K$1 > 1, 360, DAY(DATE(YEAR(A21),3,0))+337) -> 360 | C21: =IF($K$1 = 2,30,36-DAY(A21+36-DAY(A21))) -> 31 | D21: =D20+I21-J21 -> 90000 | E21: =E20+D21*G21/B21/100-K21 -> 201.3888889 | F21: =D21*G21/B21/100 -> 12.5 | G21: 5 | V21: 16 | W21: 2015-02-15
A22: =IF($K$1=2,IF(SUMPRODUCT(--(MONTH($A$6:A21)=MONTH(A21)))=30,EOMONTH(A21,0)+1,IF(AND(MONTH(A21)=2,DAY(A21)=DAY(DATE(YEAR(A21),3,0))),A21,A21+1)),A21+1) -> 2015-01-17 | B22: =IF($K$1 > 1, 360, DAY(DATE(YEAR(A22),3,0))+337) -> 360 | C22: =IF($K$1 = 2,30,36-DAY(A22+36-DAY(A22))) -> 31 | D22: =D21+I22-J22 -> 90000 | E22: =E21+D22*G22/B22/100-K22 -> 213.8888889 | F22: =D22*G22/B22/100 -> 12.5 | G22: 5 | V22: 17 | W22: 2015-02-16
A23: =IF($K$1=2,IF(SUMPRODUCT(--(MONTH($A$6:A22)=MONTH(A22)))=30,EOMONTH(A22,0)+1,IF(AND(MONTH(A22)=2,DAY(A22)=DAY(DATE(YEAR(A22),3,0))),A22,A22+1)),A22+1) -> 2015-01-18 | B23: =IF($K$1 > 1, 360, DAY(DATE(YEAR(A23),3,0))+337) -> 360 | C23: =IF($K$1 = 2,30,36-DAY(A23+36-DAY(A23))) -> 31 | D23: =D22+I23-J23 -> 90000 | E23: =E22+D23*G23/B23/100-K23 -> 226.3888889 | F23: =D23*G23/B23/100 -> 12.5 | G23: 5 | V23: 18 | W23: 2015-02-17
A24: =IF($K$1=2,IF(SUMPRODUCT(--(MONTH($A$6:A23)=MONTH(A23)))=30,EOMONTH(A23,0)+1,IF(AND(MONTH(A23)=2,DAY(A23)=DAY(DATE(YEAR(A23),3,0))),A23,A23+1)),A23+1) -> 2015-01-19 | B24: =IF($K$1 > 1, 360, DAY(DATE(YEAR(A24),3,0))+337) -> 360 | C24: =IF($K$1 = 2,30,36-DAY(A24+36-DAY(A24))) -> 31 | D24: =D23+I24-J24 -> 90000 | E24: =E23+D24*G24/B24/100-K24 -> 238.8888889 | F24: =D24*G24/B24/100 -> 12.5 | G24: 5 | V24: 19 | W24: 2015-02-18
A25: =IF($K$1=2,IF(SUMPRODUCT(--(MONTH($A$6:A24)=MONTH(A24)))=30,EOMONTH(A24,0)+1,IF(AND(MONTH(A24)=2,DAY(A24)=DAY(DATE(YEAR(A24),3,0))),A24,A24+1)),A24+1) -> 2015-01-20 | B25: =IF($K$1 > 1, 360, DAY(DATE(YEAR(A25),3,0))+337) -> 360 | C25: =IF($K$1 = 2,30,36-DAY(A25+36-DAY(A25))) -> 31 | D25: =D24+I25-J25 -> 90000 | E25: =E24+D25*G25/B25/100-K25 -> 251.3888889 | F25: =D25*G25/B25/100 -> 12.5 | G25: 5 | V25: 20 | W25: 2015-02-19
A26: =IF($K$1=2,IF(SUMPRODUCT(--(MONTH($A$6:A25)=MONTH(A25)))=30,EOMONTH(A25,0)+1,IF(AND(MONTH(A25)=2,DAY(A25)=DAY(DATE(YEAR(A25),3,0))),A25,A25+1)),A25+1) -> 2015-01-21 | B26: =IF($K$1 > 1, 360, DAY(DATE(YEAR(A26),3,0))+337) -> 360 | C26: =IF($K$1 = 2,30,36-DAY(A26+36-DAY(A26))) -> 31 | D26: =D25+I26-J26 -> 90000 | E26: =E25+D26*G26/B26/100-K26 -> 263.8888889 | F26: =D26*G26/B26/100 -> 12.5 | G26: 5 | V26: 21 | W26: 2015-02-20
A27: =IF($K$1=2,IF(SUMPRODUCT(--(MONTH($A$6:A26)=MONTH(A26)))=30,EOMONTH(A26,0)+1,IF(AND(MONTH(A26)=2,DAY(A26)=DAY(DATE(YEAR(A26),3,0))),A26,A26+1)),A26+1) -> 2015-01-22 | B27: =IF($K$1 > 1, 360, DAY(DATE(YEAR(A27),3,0))+337) -> 360 | C27: =IF($K$1 = 2,30,36-DAY(A27+36-DAY(A27))) -> 31 | D27: =D26+I27-J27 -> 90000 | E27: =E26+D27*G27/B27/100-K27 -> 276.3888889 | F27: =D27*G27/B27/100 -> 12.5 | G27: 5 | V27: 22 | W27: 2015-02-21
A28: =IF($K$1=2,IF(SUMPRODUCT(--(MONTH($A$6:A27)=MONTH(A27)))=30,EOMONTH(A27,0)+1,IF(AND(MONTH(A27)=2,DAY(A27)=DAY(DATE(YEAR(A27),3,0))),A27,A27+1)),A27+1) -> 2015-01-23 | B28: =IF($K$1 > 1, 360, DAY(DATE(YEAR(A28),3,0))+337) -> 360 | C28: =IF($K$1 = 2,30,36-DAY(A28+36-DAY(A28))) -> 31 | D28: =D27+I28-J28 -> 90000 | E28: =E27+D28*G28/B28/100-K28 -> 288.8888889 | F28: =D28*G28/B28/100 -> 12.5 | G28: 5 | V28: 23 | W28: 2015-02-22
A29: =IF($K$1=2,IF(SUMPRODUCT(--(MONTH($A$6:A28)=MONTH(A28)))=30,EOMONTH(A28,0)+1,IF(AND(MONTH(A28)=2,DAY(A28)=DAY(DATE(YEAR(A28),3,0))),A28,A28+1)),A28+1) -> 2015-01-24 | B29: =IF($K$1 > 1, 360, DAY(DATE(YEAR(A29),3,0))+337) -> 360 | C29: =IF($K$1 = 2,30,36-DAY(A29+36-DAY(A29))) -> 31 | D29: =D28+I29-J29 -> 90000 | E29: =E28+D29*G29/B29/100-K29 -> 301.3888889 | F29: =D29*G29/B29/100 -> 12.5 | G29: 5 | V29: 24 | W29: 2015-02-23
A30: =IF($K$1=2,IF(SUMPRODUCT(--(MONTH($A$6:A29)=MONTH(A29)))=30,EOMONTH(A29,0)+1,IF(AND(MONTH(A29)=2,DAY(A29)=DAY(DATE(YEAR(A29),3,0))),A29,A29+1)),A29+1) -> 2015-01-25 | B30: =IF($K$1 > 1, 360, DAY(DATE(YEAR(A30),3,0))+337) -> 360 | C30: =IF($K$1 = 2,30,36-DAY(A30+36-DAY(A30))) -> 31 | D30: =D29+I30-J30 -> 90000 | E30: =E29+D30*G30/B30/100-K30 -> 313.8888889 | F30: =D30*G30/B30/100 -> 12.5 | G30: 5 | V30: 25 | W30: 2015-02-24
A31: =IF($K$1=2,IF(SUMPRODUCT(--(MONTH($A$6:A30)=MONTH(A30)))=30,EOMONTH(A30,0)+1,IF(AND(MONTH(A30)=2,DAY(A30)=DAY(DATE(YEAR(A30),3,0))),A30,A30+1)),A30+1) -> 2015-01-26 | B31: =IF($K$1 > 1, 360, DAY(DATE(YEAR(A31),3,0))+337) -> 360 | C31: =IF($K$1 = 2,30,36-DAY(A31+36-DAY(A31))) -> 31 | D31: =D30+I31-J31 -> 90000 | E31: =E30+D31*G31/B31/100-K31 -> 326.3888889 | F31: =D31*G31/B31/100 -> 12.5 | G31: 5 | V31: 26 | W31: 2015-02-25
A32: =IF($K$1=2,IF(SUMPRODUCT(--(MONTH($A$6:A31)=MONTH(A31)))=30,EOMONTH(A31,0)+1,IF(AND(MONTH(A31)=2,DAY(A31)=DAY(DATE(YEAR(A31),3,0))),A31,A31+1)),A31+1) -> 2015-01-27 | B32: =IF($K$1 > 1, 360, DAY(DATE(YEAR(A32),3,0))+337) -> 360 | C32: =IF($K$1 = 2,30,36-DAY(A32+36-DAY(A32))) -> 31 | D32: =D31+I32-J32 -> 90000 | E32: =E31+D32*G32/B32/100-K32 -> 338.8888889 | F32: =D32*G32/B32/100 -> 12.5 | G32: 5 | V32: 27 | W32: 2015-02-26
A33: =IF($K$1=2,IF(SUMPRODUCT(--(MONTH($A$6:A32)=MONTH(A32)))=30,EOMONTH(A32,0)+1,IF(AND(MONTH(A32)=2,DAY(A32)=DAY(DATE(YEAR(A32),3,0))),A32,A32+1)),A32+1) -> 2015-01-28 | B33: =IF($K$1 > 1, 360, DAY(DATE(YEAR(A33),3,0))+337) -> 360 | C33: =IF($K$1 = 2,30,36-DAY(A33+36-DAY(A33))) -> 31 | D33: =D32+I33-J33 -> 90000 | E33: =E32+D33*G33/B33/100-K33 -> 351.3888889 | F33: =D33*G33/B33/100 -> 12.5 | G33: 5 | V33: 28 | W33: 2015-02-27
A34: =IF($K$1=2,IF(SUMPRODUCT(--(MONTH($A$6:A33)=MONTH(A33)))=30,EOMONTH(A33,0)+1,IF(AND(MONTH(A33)=2,DAY(A33)=DAY(DATE(YEAR(A33),3,0))),A33,A33+1)),A33+1) -> 2015-01-29 | B34: =IF($K$1 > 1, 360, DAY(DATE(YEAR(A34),3,0))+337) -> 360 | C34: =IF($K$1 = 2,30,36-DAY(A34+36-DAY(A34))) -> 31 | D34: =D33+I34-J34 -> 90000 | E34: =E33+D34*G34/B34/100-K34 -> 363.8888889 | F34: =D34*G34/B34/100 -> 12.5 | G34: 5 | V34: 29 | W34: 2015-02-28
A35: =IF($K$1=2,IF(SUMPRODUCT(--(MONTH($A$6:A34)=MONTH(A34)))=30,EOMONTH(A34,0)+1,IF(AND(MONTH(A34)=2,DAY(A34)=DAY(DATE(YEAR(A34),3,0))),A34,A34+1)),A34+1) -> 2015-01-30 | B35: =IF($K$1 > 1, 360, DAY(DATE(YEAR(A35),3,0))+337) -> 360 | C35: =IF($K$1 = 2,30,36-DAY(A35+36-DAY(A35))) -> 31 | D35: =D34+I35-J35 -> 90000 | E35: =E34+D35*G35/B35/100-K35 -> 376.3888889 | F35: =D35*G35/B35/100 -> 12.5 | G35: 5 | V35: 30 | W35: 2015-02-28
A36: =IF($K$1=2,IF(SUMPRODUCT(--(MONTH($A$6:A35)=MONTH(A35)))=30,EOMONTH(A35,0)+1,IF(AND(MONTH(A35)=2,DAY(A35)=DAY(DATE(YEAR(A35),3,0))),A35,A35+1)),A35+1) -> 2015-01-31 | B36: =IF($K$1 > 1, 360, DAY(DATE(YEAR(A36),3,0))+337) -> 360 | C36: =IF($K$1 = 2,30,36-DAY(A36+36-DAY(A36))) -> 31 | D36: =D35+I36-J36 -> 90000 | E36: =E35+D36*G36/B36/100-K36 -> 388.8888889 | F36: =D36*G36/B36/100 -> 12.5 | G36: 5 | V36: 1 | W36: 2015-02-28
A37: =IF($K$1=2,IF(SUMPRODUCT(--(MONTH($A$6:A36)=MONTH(A36)))=30,EOMONTH(A36,0)+1,IF(AND(MONTH(A36)=2,DAY(A36)=DAY(DATE(YEAR(A36),3,0))),A36,A36+1)),A36+1) -> 2015-02-01 | B37: =IF($K$1 > 1, 360, DAY(DATE(YEAR(A37),3,0))+337) -> 360 | C37: =IF($K$1 = 2,30,36-DAY(A37+36-DAY(A37))) -> 28 | D37: =D36+I37-J37 -> 90000 | E37: =E36+D37*G37/B37/100-K37 -> 401.3888889 | F37: =D37*G37/B37/100 -> 12.5 | G37: 5 | V37: 2 | W37: 42063
A38: =IF($K$1=2,IF(SUMPRODUCT(--(MONTH($A$6:A37)=MONTH(A37)))=30,EOMONTH(A37,0)+1,IF(AND(MONTH(A37)=2,DAY(A37)=DAY(DATE(YEAR(A37),3,0))),A37,A37+1)),A37+1) -> 2015-02-02 | B38: =IF($K$1 > 1, 360, DAY(DATE(YEAR(A38),3,0))+337) -> 360 | C38: =IF($K$1 = 2,30,36-DAY(A38+36-DAY(A38))) -> 28 | D38: =D37+I38-J38 -> 90000 | E38: =E37+D38*G38/B38/100-K38 -> 413.8888889 | F38: =D38*G38/B38/100 -> 12.5 | G38: 5 | V38: 3 | W38: 42064
A39: =IF($K$1=2,IF(SUMPRODUCT(--(MONTH($A$6:A38)=MONTH(A38)))=30,EOMONTH(A38,0)+1,IF(AND(MONTH(A38)=2,DAY(A38)=DAY(DATE(YEAR(A38),3,0))),A38,A38+1)),A38+1) -> 2015-02-03 | B39: =IF($K$1 > 1, 360, DAY(DATE(YEAR(A39),3,0))+337) -> 360 | C39: =IF($K$1 = 2,30,36-DAY(A39+36-DAY(A39))) -> 28 | D39: =D38+I39-J39 -> 90000 | E39: =E38+D39*G39/B39/100-K39 -> 426.3888889 | F39: =D39*G39/B39/100 -> 12.5 | G39: 5 | V39: 4 | W39: 42065
A40: =IF($K$1=2,IF(SUMPRODUCT(--(MONTH($A$6:A39)=MONTH(A39)))=30,EOMONTH(A39,0)+1,IF(AND(MONTH(A39)=2,DAY(A39)=DAY(DATE(YEAR(A39),3,0))),A39,A39+1)),A39+1) -> 2015-02-04 | B40: =IF($K$1 > 1, 360, DAY(DATE(YEAR(A40),3,0))+337) -> 360 | C40: =IF($K$1 = 2,30,36-DAY(A40+36-DAY(A40))) -> 28 | D40: =D39+I40-J40 -> 90000 | E40: =E39+D40*G40/B40/100-K40 -> 438.8888889 | F40: =D40*G40/B40/100 -> 12.5 | G40: 5 | V40: 5 | W40: 42066
A41: =IF($K$1=2,IF(SUMPRODUCT(--(MONTH($A$6:A40)=MONTH(A40)))=30,EOMONTH(A40,0)+1,IF(AND(MONTH(A40)=2,DAY(A40)=DAY(DATE(YEAR(A40),3,0))),A40,A40+1)),A40+1) -> 2015-02-05 | B41: =IF($K$1 > 1, 360, DAY(DATE(YEAR(A41),3,0))+337) -> 360 | C41: =IF($K$1 = 2,30,36-DAY(A41+36-DAY(A41))) -> 28 | D41: =D40+I41-J41 -> 90000 | E41: =E40+D41*G41/B41/100-K41 -> 451.3888889 | F41: =D41*G41/B41/100 -> 12.5 | G41: 5 | V41: 6 | W41: 42067
A42: =IF($K$1=2,IF(SUMPRODUCT(--(MONTH($A$6:A41)=MONTH(A41)))=30,EOMONTH(A41,0)+1,IF(AND(MONTH(A41)=2,DAY(A41)=DAY(DATE(YEAR(A41),3,0))),A41,A41+1)),A41+1) -> 2015-02-06 | B42: =IF($K$1 > 1, 360, DAY(DATE(YEAR(A42),3,0))+337) -> 360 | C42: =IF($K$1 = 2,30,36-DAY(A42+36-DAY(A42))) -> 28 | D42: =D41+I42-J42 -> 90000 | E42: =E41+D42*G42/B42/100-K42 -> 463.8888889 | F42: =D42*G42/B42/100 -> 12.5 | G42: 5 | V42: 7 | W42: 42068
A43: =IF($K$1=2,IF(SUMPRODUCT(--(MONTH($A$6:A42)=MONTH(A42)))=30,EOMONTH(A42,0)+1,IF(AND(MONTH(A42)=2,DAY(A42)=DAY(DATE(YEAR(A42),3,0))),A42,A42+1)),A42+1) -> 2015-02-07 | B43: =IF($K$1 > 1, 360, DAY(DATE(YEAR(A43),3,0))+337) -> 360 | C43: =IF($K$1 = 2,30,36-DAY(A43+36-DAY(A43))) -> 28 | D43: =D42+I43-J43 -> 90000 | E43: =E42+D43*G43/B43/100-K43 -> 476.3888889 | F43: =D43*G43/B43/100 -> 12.5 | G43: 5 | V43: 8 | W43: 42069
A44: =IF($K$1=2,IF(SUMPRODUCT(--(MONTH($A$6:A43)=MONTH(A43)))=30,EOMONTH(A43,0)+1,IF(AND(MONTH(A43)=2,DAY(A43)=DAY(DATE(YEAR(A43),3,0))),A43,A43+1)),A43+1) -> 2015-02-08 | B44: =IF($K$1 > 1, 360, DAY(DATE(YEAR(A44),3,0))+337) -> 360 | C44: =IF($K$1 = 2,30,36-DAY(A44+36-DAY(A44))) -> 28 | D44: =D43+I44-J44 -> 90000 | E44: =E43+D44*G44/B44/100-K44 -> 488.8888889 | F44: =D44*G44/B44/100 -> 12.5 | G44: 5 | V44: 9 | W44: =EDATE($A43,1) -> 42070
A45: =IF($K$1=2,IF(SUMPRODUCT(--(MONTH($A$6:A44)=MONTH(A44)))=30,EOMONTH(A44,0)+1,IF(AND(MONTH(A44)=2,DAY(A44)=DAY(DATE(YEAR(A44),3,0))),A44,A44+1)),A44+1) -> 2015-02-09 | B45: =IF($K$1 > 1, 360, DAY(DATE(YEAR(A45),3,0))+337) -> 360 | C45: =IF($K$1 = 2,30,36-DAY(A45+36-DAY(A45))) -> 28 | D45: =D44+I45-J45 -> 90000 | E45: =E44+D45*G45/B45/100-K45 -> 501.3888889 | F45: =D45*G45/B45/100 -> 12.5 | G45: 5 | V45: 10 | W45: 42071
A46: =IF($K$1=2,IF(SUMPRODUCT(--(MONTH($A$6:A45)=MONTH(A45)))=30,EOMONTH(A45,0)+1,IF(AND(MONTH(A45)=2,DAY(A45)=DAY(DATE(YEAR(A45),3,0))),A45,A45+1)),A45+1) -> 2015-02-10 | B46: =IF($K$1 > 1, 360, DAY(DATE(YEAR(A46),3,0))+337) -> 360 | C46: =IF($K$1 = 2,30,36-DAY(A46+36-DAY(A46))) -> 28 | D46: =D45+I46-J46 -> 90000 | E46: =E45+D46*G46/B46/100-K46 -> 513.8888889 | F46: =D46*G46/B46/100 -> 12.5 | G46: 5 | V46: 11 | W46: 42072
A47: =IF($K$1=2,IF(SUMPRODUCT(--(MONTH($A$6:A46)=MONTH(A46)))=30,EOMONTH(A46,0)+1,IF(AND(MONTH(A46)=2,DAY(A46)=DAY(DATE(YEAR(A46),3,0))),A46,A46+1)),A46+1) -> 2015-02-11 | B47: =IF($K$1 > 1, 360, DAY(DATE(YEAR(A47),3,0))+337) -> 360 | C47: =IF($K$1 = 2,30,36-DAY(A47+36-DAY(A47))) -> 28 | D47: =D46+I47-J47 -> 90000 | E47: =E46+D47*G47/B47/100-K47 -> 526.3888889 | F47: =D47*G47/B47/100 -> 12.5 | G47: 5 | V47: 12 | W47: 42073
A48: =IF($K$1=2,IF(SUMPRODUCT(--(MONTH($A$6:A47)=MONTH(A47)))=30,EOMONTH(A47,0)+1,IF(AND(MONTH(A47)=2,DAY(A47)=DAY(DATE(YEAR(A47),3,0))),A47,A47+1)),A47+1) -> 2015-02-12 | B48: =IF($K$1 > 1, 360, DAY(DATE(YEAR(A48),3,0))+337) -> 360 | C48: =IF($K$1 = 2,30,36-DAY(A48+36-DAY(A48))) -> 28 | D48: =D47+I48-J48 -> 90000 | E48: =E47+D48*G48/B48/100-K48 -> 538.8888889 | F48: =D48*G48/B48/100 -> 12.5 | G48: 5 | V48: 13 | W48: 42074
A49: =IF($K$1=2,IF(SUMPRODUCT(--(MONTH($A$6:A48)=MONTH(A48)))=30,EOMONTH(A48,0)+1,IF(AND(MONTH(A48)=2,DAY(A48)=DAY(DATE(YEAR(A48),3,0))),A48,A48+1)),A48+1) -> 2015-02-13 | B49: =IF($K$1 > 1, 360, DAY(DATE(YEAR(A49),3,0))+337) -> 360 | C49: =IF($K$1 = 2,30,36-DAY(A49+36-DAY(A49))) -> 28 | D49: =D48+I49-J49 -> 90000 | E49: =E48+D49*G49/B49/100-K49 -> 551.3888889 | F49: =D49*G49/B49/100 -> 12.5 | G49: 5 | V49: 14 | W49: 42075
A50: =IF($K$1=2,IF(SUMPRODUCT(--(MONTH($A$6:A49)=MONTH(A49)))=30,EOMONTH(A49,0)+1,IF(AND(MONTH(A49)=2,DAY(A49)=DAY(DATE(YEAR(A49),3,0))),A49,A49+1)),A49+1) -> 2015-02-14 | B50: =IF($K$1 > 1, 360, DAY(DATE(YEAR(A50),3,0))+337) -> 360 | C50: =IF($K$1 = 2,30,36-DAY(A50+36-DAY(A50))) -> 28 | D50: =D49+I50-J50 -> 90000 | E50: =E49+D50*G50/B50/100-K50 -> 563.8888889 | F50: =D50*G50/B50/100 -> 12.5 | G50: 5 | V50: 15 | W50: 42076
A51: =IF($K$1=2,IF(SUMPRODUCT(--(MONTH($A$6:A50)=MONTH(A50)))=30,EOMONTH(A50,0)+1,IF(AND(MONTH(A50)=2,DAY(A50)=DAY(DATE(YEAR(A50),3,0))),A50,A50+1)),A50+1) -> 2015-02-15 | B51: =IF($K$1 > 1, 360, DAY(DATE(YEAR(A51),3,0))+337) -> 360 | C51: =IF($K$1 = 2,30,36-DAY(A51+36-DAY(A51))) -> 28 | D51: =D50+I51-J51 -> 90000 | E51: =E50+D51*G51/B51/100-K51 -> 576.3888889 | F51: =D51*G51/B51/100 -> 12.5 | G51: 5 | V51: 16 | W51: 42077
A52: =IF($K$1=2,IF(SUMPRODUCT(--(MONTH($A$6:A51)=MONTH(A51)))=30,EOMONTH(A51,0)+1,IF(AND(MONTH(A51)=2,DAY(A51)=DAY(DATE(YEAR(A51),3,0))),A51,A51+1)),A51+1) -> 2015-02-16 | B52: =IF($K$1 > 1, 360, DAY(DATE(YEAR(A52),3,0))+337) -> 360 | C52: =IF($K$1 = 2,30,36-DAY(A52+36-DAY(A52))) -> 28 | D52: =D51+I52-J52 -> 90000 | E52: =E51+D52*G52/B52/100-K52 -> 588.8888889 | F52: =D52*G52/B52/100 -> 12.5 | G52: 5 | V52: 17 | W52: 42078
A53: =IF($K$1=2,IF(SUMPRODUCT(--(MONTH($A$6:A52)=MONTH(A52)))=30,EOMONTH(A52,0)+1,IF(AND(MONTH(A52)=2,DAY(A52)=DAY(DATE(YEAR(A52),3,0))),A52,A52+1)),A52+1) -> 2015-02-17 | B53: =IF($K$1 > 1, 360, DAY(DATE(YEAR(A53),3,0))+337) -> 360 | C53: =IF($K$1 = 2,30,36-DAY(A53+36-DAY(A53))) -> 28 | D53: =D52+I53-J53 -> 90000 | E53: =E52+D53*G53/B53/100-K53 -> 601.3888889 | F53: =D53*G53/B53/100 -> 12.5 | G53: 5 | V53: 18 | W53: 42079
A54: =IF($K$1=2,IF(SUMPRODUCT(--(MONTH($A$6:A53)=MONTH(A53)))=30,EOMONTH(A53,0)+1,IF(AND(MONTH(A53)=2,DAY(A53)=DAY(DATE(YEAR(A53),3,0))),A53,A53+1)),A53+1) -> 2015-02-18 | B54: =IF($K$1 > 1, 360, DAY(DATE(YEAR(A54),3,0))+337) -> 360 | C54: =IF($K$1 = 2,30,36-DAY(A54+36-DAY(A54))) -> 28 | D54: =D53+I54-J54 -> 90000 | E54: =E53+D54*G54/B54/100-K54 -> 613.8888889 | F54: =D54*G54/B54/100 -> 12.5 | G54: 5 | V54: 19 | W54: 42080
A55: =IF($K$1=2,IF(SUMPRODUCT(--(MONTH($A$6:A54)=MONTH(A54)))=30,EOMONTH(A54,0)+1,IF(AND(MONTH(A54)=2,DAY(A54)=DAY(DATE(YEAR(A54),3,0))),A54,A54+1)),A54+1) -> 2015-02-19 | B55: =IF($K$1 > 1, 360, DAY(DATE(YEAR(A55),3,0))+337) -> 360 | C55: =IF($K$1 = 2,30,36-DAY(A55+36-DAY(A55))) -> 28 | D55: =D54+I55-J55 -> 90000 | E55: =E54+D55*G55/B55/100-K55 -> 626.3888889 | F55: =D55*G55/B55/100 -> 12.5 | G55: 5 | V55: 20 | W55: 42081
A56: =IF($K$1=2,IF(SUMPRODUCT(--(MONTH($A$6:A55)=MONTH(A55)))=30,EOMONTH(A55,0)+1,IF(AND(MONTH(A55)=2,DAY(A55)=DAY(DATE(YEAR(A55),3,0))),A55,A55+1)),A55+1) -> 2015-02-20 | B56: =IF($K$1 > 1, 360, DAY(DATE(YEAR(A56),3,0))+337) -> 360 | C56: =IF($K$1 = 2,30,36-DAY(A56+36-DAY(A56))) -> 28 | D56: =D55+I56-J56 -> 90000 | E56: =E55+D56*G56/B56/100-K56 -> 638.8888889 | F56: =D56*G56/B56/100 -> 12.5 | G56: 5 | V56: 21 | W56: 42082
A57: =IF($K$1=2,IF(SUMPRODUCT(--(MONTH($A$6:A56)=MONTH(A56)))=30,EOMONTH(A56,0)+1,IF(AND(MONTH(A56)=2,DAY(A56)=DAY(DATE(YEAR(A56),3,0))),A56,A56+1)),A56+1) -> 2015-02-21 | B57: =IF($K$1 > 1, 360, DAY(DATE(YEAR(A57),3,0))+337) -> 360 | C57: =IF($K$1 = 2,30,36-DAY(A57+36-DAY(A57))) -> 28 | D57: =D56+I57-J57 -> 90000 | E57: =E56+D57*G57/B57/100-K57 -> 651.3888889 | F57: =D57*G57/B57/100 -> 12.5 | G57: 5 | V57: 22 | W57: 42083
A58: =IF($K$1=2,IF(SUMPRODUCT(--(MONTH($A$6:A57)=MONTH(A57)))=30,EOMONTH(A57,0)+1,IF(AND(MONTH(A57)=2,DAY(A57)=DAY(DATE(YEAR(A57),3,0))),A57,A57+1)),A57+1) -> 2015-02-22 | B58: =IF($K$1 > 1, 360, DAY(DATE(YEAR(A58),3,0))+337) -> 360 | C58: =IF($K$1 = 2,30,36-DAY(A58+36-DAY(A58))) -> 28 | D58: =D57+I58-J58 -> 90000 | E58: =E57+D58*G58/B58/100-K58 -> 663.8888889 | F58: =D58*G58/B58/100 -> 12.5 | G58: 5 | V58: 23 | W58: 42084
A59: =IF($K$1=2,IF(SUMPRODUCT(--(MONTH($A$6:A58)=MONTH(A58)))=30,EOMONTH(A58,0)+1,IF(AND(MONTH(A58)=2,DAY(A58)=DAY(DATE(YEAR(A58),3,0))),A58,A58+1)),A58+1) -> 2015-02-23 | B59: =IF($K$1 > 1, 360, DAY(DATE(YEAR(A59),3,0))+337) -> 360 | C59: =IF($K$1 = 2,30,36-DAY(A59+36-DAY(A59))) -> 28 | D59: =D58+I59-J59 -> 90000 | E59: =E58+D59*G59/B59/100-K59 -> 676.3888889 | F59: =D59*G59/B59/100 -> 12.5 | G59: 5 | V59: 24 | W59: 42085
A60: =IF($K$1=2,IF(SUMPRODUCT(--(MONTH($A$6:A59)=MONTH(A59)))=30,EOMONTH(A59,0)+1,IF(AND(MONTH(A59)=2,DAY(A59)=DAY(DATE(YEAR(A59),3,0))),A59,A59+1)),A59+1) -> 2015-02-24 | B60: =IF($K$1 > 1, 360, DAY(DATE(YEAR(A60),3,0))+337) -> 360 | C60: =IF($K$1 = 2,30,36-DAY(A60+36-DAY(A60))) -> 28 | D60: =D59+I60-J60 -> 90000 | E60: =E59+D60*G60/B60/100-K60 -> 688.8888889 | F60: =D60*G60/B60/100 -> 12.5 | G60: 5 | V60: 25 | W60: 42086
A61: =IF($K$1=2,IF(SUMPRODUCT(--(MONTH($A$6:A60)=MONTH(A60)))=30,EOMONTH(A60,0)+1,IF(AND(MONTH(A60)=2,DAY(A60)=DAY(DATE(YEAR(A60),3,0))),A60,A60+1)),A60+1) -> 2015-02-25 | B61: =IF($K$1 > 1, 360, DAY(DATE(YEAR(A61),3,0))+337) -> 360 | C61: =IF($K$1 = 2,30,36-DAY(A61+36-DAY(A61))) -> 28 | D61: =D60+I61-J61 -> 90000 | E61: =E60+D61*G61/B61/100-K61 -> 701.3888889 | F61: =D61*G61/B61/100 -> 12.5 | G61: 5 | V61: 26 | W61: 42087
A62: =IF($K$1=2,IF(SUMPRODUCT(--(MONTH($A$6:A61)=MONTH(A61)))=30,EOMONTH(A61,0)+1,IF(AND(MONTH(A61)=2,DAY(A61)=DAY(DATE(YEAR(A61),3,0))),A61,A61+1)),A61+1) -> 2015-02-26 | B62: =IF($K$1 > 1, 360, DAY(DATE(YEAR(A62),3,0))+337) -> 360 | C62: =IF($K$1 = 2,30,36-DAY(A62+36-DAY(A62))) -> 28 | D62: =D61+I62-J62 -> 90000 | E62: =E61+D62*G62/B62/100-K62 -> 713.8888889 | F62: =D62*G62/B62/100 -> 12.5 | G62: 5 | V62: 27 | W62: 42088
A63: =IF($K$1=2,IF(SUMPRODUCT(--(MONTH($A$6:A62)=MONTH(A62)))=30,EOMONTH(A62,0)+1,IF(AND(MONTH(A62)=2,DAY(A62)=DAY(DATE(YEAR(A62),3,0))),A62,A62+1)),A62+1) -> 2015-02-27 | B63: =IF($K$1 > 1, 360, DAY(DATE(YEAR(A63),3,0))+337) -> 360 | C63: =IF($K$1 = 2,30,36-DAY(A63+36-DAY(A63))) -> 28 | D63: =D62+I63-J63 -> 90000 | E63: =E62+D63*G63/B63/100-K63 -> 726.3888889 | F63: =D63*G63/B63/100 -> 12.5 | G63: 5 | V63: 28 | W63: 42089
A64: =IF($K$1=2,IF(SUMPRODUCT(--(MONTH($A$6:A63)=MONTH(A63)))=30,EOMONTH(A63,0)+1,IF(AND(MONTH(A63)=2,DAY(A63)=DAY(DATE(YEAR(A63),3,0))),A63,A63+1)),A63+1) -> 2015-02-28 | B64: =IF($K$1 > 1, 360, DAY(DATE(YEAR(A64),3,0))+337) -> 360 | C64: =IF($K$1 = 2,30,36-DAY(A64+36-DAY(A64))) -> 28 | D64: =D63+I64-J64 -> 90000 | E64: =E63+D64*G64/B64/100-K64 -> 738.8888889 | F64: =D64*G64/B64/100 -> 12.5 | G64: 5 | V64: 29 | W64: 42090
A65: =IF($K$1=2,IF(SUMPRODUCT(--(MONTH($A$6:A64)=MONTH(A64)))=30,EOMONTH(A64,0)+1,IF(AND(MONTH(A64)=2,DAY(A64)=DAY(DATE(YEAR(A64),3,0))),A64,A64+1)),A64+1) -> 2015-03-01 | B65: =IF($K$1 > 1, 360, DAY(DATE(YEAR(A65),3,0))+337) -> 360 | C65: =IF($K$1 = 2,30,36-DAY(A65+36-DAY(A65))) -> 31 | D65: =D64+I65-J65 -> 90000 | E65: =E64+D65*G65/B65/100-K65 -> 751.3888889 | F65: =D65*G65/B65/100 -> 12.5 | G65: 5 | V65: 30 | W65: 42091
A66: =IF($K$1=2,IF(SUMPRODUCT(--(MONTH($A$6:A65)=MONTH(A65)))=30,EOMONTH(A65,0)+1,IF(AND(MONTH(A65)=2,DAY(A65)=DAY(DATE(YEAR(A65),3,0))),A65,A65+1)),A65+1) -> 2015-03-02 | B66: =IF($K$1 > 1, 360, DAY(DATE(YEAR(A66),3,0))+337) -> 360 | C66: =IF($K$1 = 2,30,36-DAY(A66+36-DAY(A66))) -> 31 | D66: =D65+I66-J66 -> 90000 | E66: =E65+D66*G66/B66/100-K66 -> 763.8888889 | F66: =D66*G66/B66/100 -> 12.5 | G66: 5 | V66: 1 | W66: 42095
A67: =IF($K$1=2,IF(SUMPRODUCT(--(MONTH($A$6:A66)=MONTH(A66)))=30,EOMONTH(A66,0)+1,IF(AND(MONTH(A66)=2,DAY(A66)=DAY(DATE(YEAR(A66),3,0))),A66,A66+1)),A66+1) -> 2015-03-03 | B67: =IF($K$1 > 1, 360, DAY(DATE(YEAR(A67),3,0))+337) -> 360 | C67: =IF($K$1 = 2,30,36-DAY(A67+36-DAY(A67))) -> 31 | D67: =D66+I67-J67 -> 90000 | E67: =E66+D67*G67/B67/100-K67 -> 776.3888889 | F67: =D67*G67/B67/100 -> 12.5 | G67: 5 | V67: 2 | W67: 42096
A68: =IF($K$1=2,IF(SUMPRODUCT(--(MONTH($A$6:A67)=MONTH(A67)))=30,EOMONTH(A67,0)+1,IF(AND(MONTH(A67)=2,DAY(A67)=DAY(DATE(YEAR(A67),3,0))),A67,A67+1)),A67+1) -> 2015-03-04 | B68: =IF($K$1 > 1, 360, DAY(DATE(YEAR(A68),3,0))+337) -> 360 | C68: =IF($K$1 = 2,30,36-DAY(A68+36-DAY(A68))) -> 31 | D68: =D67+I68-J68 -> 90000 | E68: =E67+D68*G68/B68/100-K68 -> 788.8888889 | F68: =D68*G68/B68/100 -> 12.5 | G68: 5 | V68: 3 | W68: 42097
A69: =IF($K$1=2,IF(SUMPRODUCT(--(MONTH($A$6:A68)=MONTH(A68)))=30,EOMONTH(A68,0)+1,IF(AND(MONTH(A68)=2,DAY(A68)=DAY(DATE(YEAR(A68),3,0))),A68,A68+1)),A68+1) -> 2015-03-05 | B69: =IF($K$1 > 1, 360, DAY(DATE(YEAR(A69),3,0))+337) -> 360 | C69: =IF($K$1 = 2,30,36-DAY(A69+36-DAY(A69))) -> 31 | D69: =D68+I69-J69 -> 90000 | E69: =E68+D69*G69/B69/100-K69 -> 801.3888889 | F69: =D69*G69/B69/100 -> 12.5 | G69: 5 | V69: 4 | W69: 42098
A70: =IF($K$1=2,IF(SUMPRODUCT(--(MONTH($A$6:A69)=MONTH(A69)))=30,EOMONTH(A69,0)+1,IF(AND(MONTH(A69)=2,DAY(A69)=DAY(DATE(YEAR(A69),3,0))),A69,A69+1)),A69+1) -> 2015-03-06 | B70: =IF($K$1 > 1, 360, DAY(DATE(YEAR(A70),3,0))+337) -> 360 | C70: =IF($K$1 = 2,30,36-DAY(A70+36-DAY(A70))) -> 31 | D70: =D69+I70-J70 -> 90000 | E70: =E69+D70*G70/B70/100-K70 -> 813.8888889 | F70: =D70*G70/B70/100 -> 12.5 | G70: 5 | V70: 5 | W70: 42099
A71: =IF($K$1=2,IF(SUMPRODUCT(--(MONTH($A$6:A70)=MONTH(A70)))=30,EOMONTH(A70,0)+1,IF(AND(MONTH(A70)=2,DAY(A70)=DAY(DATE(YEAR(A70),3,0))),A70,A70+1)),A70+1) -> 2015-03-07 | B71: =IF($K$1 > 1, 360, DAY(DATE(YEAR(A71),3,0))+337) -> 360 | C71: =IF($K$1 = 2,30,36-DAY(A71+36-DAY(A71))) -> 31 | D71: =D70+I71-J71 -> 90000 | E71: =E70+D71*G71/B71/100-K71 -> 826.3888889 | F71: =D71*G71/B71/100 -> 12.5 | G71: 5 | V71: 6 | W71: 42100
A72: =IF($K$1=2,IF(SUMPRODUCT(--(MONTH($A$6:A71)=MONTH(A71)))=30,EOMONTH(A71,0)+1,IF(AND(MONTH(A71)=2,DAY(A71)=DAY(DATE(YEAR(A71),3,0))),A71,A71+1)),A71+1) -> 2015-03-08 | B72: =IF($K$1 > 1, 360, DAY(DATE(YEAR(A72),3,0))+337) -> 360 | C72: =IF($K$1 = 2,30,36-DAY(A72+36-DAY(A72))) -> 31 | D72: =D71+I72-J72 -> 90000 | E72: =E71+D72*G72/B72/100-K72 -> 838.8888889 | F72: =D72*G72/B72/100 -> 12.5 | G72: =IF(ISNUMBER(H72),H72,G71) -> 5 | V72: =IF(V71<30,V71+1,1) -> 7 | W72: =EDATE($A71,1) -> 42101
A73: =IF($K$1=2,IF(SUMPRODUCT(--(MONTH($A$6:A72)=MONTH(A72)))=30,EOMONTH(A72,0)+1,IF(AND(MONTH(A72)=2,DAY(A72)=DAY(DATE(YEAR(A72),3,0))),A72,A72+1)),A72+1) -> 2015-03-09 | B73: =IF($K$1 > 1, 360, DAY(DATE(YEAR(A73),3,0))+337) -> 360 | C73: =IF($K$1 = 2,30,36-DAY(A73+36-DAY(A73))) -> 31 | D73: =D72+I73-J73 -> 90000 | E73: =E72+D73*G73/B73/100-K73 -> 851.3888889 | F73: =D73*G73/B73/100 -> 12.5 | G73: 5 | V73: 8 | W73: 42102
A74: =IF($K$1=2,IF(SUMPRODUCT(--(MONTH($A$6:A73)=MONTH(A73)))=30,EOMONTH(A73,0)+1,IF(AND(MONTH(A73)=2,DAY(A73)=DAY(DATE(YEAR(A73),3,0))),A73,A73+1)),A73+1) -> 2015-03-10 | B74: =IF($K$1 > 1, 360, DAY(DATE(YEAR(A74),3,0))+337) -> 360 | C74: =IF($K$1 = 2,30,36-DAY(A74+36-DAY(A74))) -> 31 | D74: =D73+I74-J74 -> 90000 | E74: =E73+D74*G74/B74/100-K74 -> 863.8888889 | F74: =D74*G74/B74/100 -> 12.5 | G74: 5 | V74: 9 | W74: 42103
A75: =IF($K$1=2,IF(SUMPRODUCT(--(MONTH($A$6:A74)=MONTH(A74)))=30,EOMONTH(A74,0)+1,IF(AND(MONTH(A74)=2,DAY(A74)=DAY(DATE(YEAR(A74),3,0))),A74,A74+1)),A74+1) -> 2015-03-11 | B75: =IF($K$1 > 1, 360, DAY(DATE(YEAR(A75),3,0))+337) -> 360 | C75: =IF($K$1 = 2,30,36-DAY(A75+36-DAY(A75))) -> 31 | D75: =D74+I75-J75 -> 90000 | E75: =E74+D75*G75/B75/100-K75 -> 876.3888889 | F75: =D75*G75/B75/100 -> 12.5 | G75: 5 | V75: 10 | W75: 42104
A76: =IF($K$1=2,IF(SUMPRODUCT(--(MONTH($A$6:A75)=MONTH(A75)))=30,EOMONTH(A75,0)+1,IF(AND(MONTH(A75)=2,DAY(A75)=DAY(DATE(YEAR(A75),3,0))),A75,A75+1)),A75+1) -> 2015-03-12 | B76: =IF($K$1 > 1, 360, DAY(DATE(YEAR(A76),3,0))+337) -> 360 | C76: =IF($K$1 = 2,30,36-DAY(A76+36-DAY(A76))) -> 31 | D76: =D75+I76-J76 -> 90000 | E76: =E75+D76*G76/B76/100-K76 -> 888.8888889 | F76: =D76*G76/B76/100 -> 12.5 | G76: 5 | V76: 11 | W76: 42105
A77: =IF($K$1=2,IF(SUMPRODUCT(--(MONTH($A$6:A76)=MONTH(A76)))=30,EOMONTH(A76,0)+1,IF(AND(MONTH(A76)=2,DAY(A76)=DAY(DATE(YEAR(A76),3,0))),A76,A76+1)),A76+1) -> 2015-03-13 | B77: =IF($K$1 > 1, 360, DAY(DATE(YEAR(A77),3,0))+337) -> 360 | C77: =IF($K$1 = 2,30,36-DAY(A77+36-DAY(A77))) -> 31 | D77: =D76+I77-J77 -> 90000 | E77: =E76+D77*G77/B77/100-K77 -> 901.3888889 | F77: =D77*G77/B77/100 -> 12.5 | G77: 5 | V77: 12 | W77: 42106
A78: =IF($K$1=2,IF(SUMPRODUCT(--(MONTH($A$6:A77)=MONTH(A77)))=30,EOMONTH(A77,0)+1,IF(AND(MONTH(A77)=2,DAY(A77)=DAY(DATE(YEAR(A77),3,0))),A77,A77+1)),A77+1) -> 2015-03-14 | B78: =IF($K$1 > 1, 360, DAY(DATE(YEAR(A78),3,0))+337) -> 360 | C78: =IF($K$1 = 2,30,36-DAY(A78+36-DAY(A78))) -> 31 | D78: =D77+I78-J78 -> 90000 | E78: =E77+D78*G78/B78/100-K78 -> 913.8888889 | F78: =D78*G78/B78/100 -> 12.5 | G78: 5 | V78: 13 | W78: 42107
A79: =IF($K$1=2,IF(SUMPRODUCT(--(MONTH($A$6:A78)=MONTH(A78)))=30,EOMONTH(A78,0)+1,IF(AND(MONTH(A78)=2,DAY(A78)=DAY(DATE(YEAR(A78),3,0))),A78,A78+1)),A78+1) -> 2015-03-15 | B79: =IF($K$1 > 1, 360, DAY(DATE(YEAR(A79),3,0))+337) -> 360 | C79: =IF($K$1 = 2,30,36-DAY(A79+36-DAY(A79))) -> 31 | D79: =D78+I79-J79 -> 90000 | E79: =E78+D79*G79/B79/100-K79 -> 926.3888889 | F79: =D79*G79/B79/100 -> 12.5 | G79: 5 | V79: 14 | W79: 42108
A80: =IF($K$1=2,IF(SUMPRODUCT(--(MONTH($A$6:A79)=MONTH(A79)))=30,EOMONTH(A79,0)+1,IF(AND(MONTH(A79)=2,DAY(A79)=DAY(DATE(YEAR(A79),3,0))),A79,A79+1)),A79+1) -> 2015-03-16 | B80: =IF($K$1 > 1, 360, DAY(DATE(YEAR(A80),3,0))+337) -> 360 | C80: =IF($K$1 = 2,30,36-DAY(A80+36-DAY(A80))) -> 31 | D80: =D79+I80-J80 -> 90000 | E80: =E79+D80*G80/B80/100-K80 -> 938.8888889 | F80: =D80*G80/B80/100 -> 12.5 | G80: 5 | V80: 15 | W80: 42109
A81: =IF($K$1=2,IF(SUMPRODUCT(--(MONTH($A$6:A80)=MONTH(A80)))=30,EOMONTH(A80,0)+1,IF(AND(MONTH(A80)=2,DAY(A80)=DAY(DATE(YEAR(A80),3,0))),A80,A80+1)),A80+1) -> 2015-03-17 | B81: =IF($K$1 > 1, 360, DAY(DATE(YEAR(A81),3,0))+337) -> 360 | C81: =IF($K$1 = 2,30,36-DAY(A81+36-DAY(A81))) -> 31 | D81: =D80+I81-J81 -> 90000 | E81: =E80+D81*G81/B81/100-K81 -> 951.3888889 | F81: =D81*G81/B81/100 -> 12.5 | G81: 5 | V81: 16 | W81: 42110
A82: =IF($K$1=2,IF(SUMPRODUCT(--(MONTH($A$6:A81)=MONTH(A81)))=30,EOMONTH(A81,0)+1,IF(AND(MONTH(A81)=2,DAY(A81)=DAY(DATE(YEAR(A81),3,0))),A81,A81+1)),A81+1) -> 2015-03-18 | B82: =IF($K$1 > 1, 360, DAY(DATE(YEAR(A82),3,0))+337) -> 360 | C82: =IF($K$1 = 2,30,36-DAY(A82+36-DAY(A82))) -> 31 | D82: =D81+I82-J82 -> 90000 | E82: =E81+D82*G82/B82/100-K82 -> 963.8888889 | F82: =D82*G82/B82/100 -> 12.5 | G82: 5 | V82: 17 | W82: 42111
A83: =IF($K$1=2,IF(SUMPRODUCT(--(MONTH($A$6:A82)=MONTH(A82)))=30,EOMONTH(A82,0)+1,IF(AND(MONTH(A82)=2,DAY(A82)=DAY(DATE(YEAR(A82),3,0))),A82,A82+1)),A82+1) -> 2015-03-19 | B83: =IF($K$1 > 1, 360, DAY(DATE(YEAR(A83),3,0))+337) -> 360 | C83: =IF($K$1 = 2,30,36-DAY(A83+36-DAY(A83))) -> 31 | D83: =D82+I83-J83 -> 90000 | E83: =E82+D83*G83/B83/100-K83 -> 976.3888889 | F83: =D83*G83/B83/100 -> 12.5 | G83: 5 | V83: 18 | W83: 42112
A84: =IF($K$1=2,IF(SUMPRODUCT(--(MONTH($A$6:A83)=MONTH(A83)))=30,EOMONTH(A83,0)+1,IF(AND(MONTH(A83)=2,DAY(A83)=DAY(DATE(YEAR(A83),3,0))),A83,A83+1)),A83+1) -> 2015-03-20 | B84: =IF($K$1 > 1, 360, DAY(DATE(YEAR(A84),3,0))+337) -> 360 | C84: =IF($K$1 = 2,30,36-DAY(A84+36-DAY(A84))) -> 31 | D84: =D83+I84-J84 -> 90000 | E84: =E83+D84*G84/B84/100-K84 -> 988.8888889 | F84: =D84*G84/B84/100 -> 12.5 | G84: 5 | V84: 19 | W84: 42113
A85: =IF($K$1=2,IF(SUMPRODUCT(--(MONTH($A$6:A84)=MONTH(A84)))=30,EOMONTH(A84,0)+1,IF(AND(MONTH(A84)=2,DAY(A84)=DAY(DATE(YEAR(A84),3,0))),A84,A84+1)),A84+1) -> 2015-03-21 | B85: =IF($K$1 > 1, 360, DAY(DATE(YEAR(A85),3,0))+337) -> 360 | C85: =IF($K$1 = 2,30,36-DAY(A85+36-DAY(A85))) -> 31 | D85: =D84+I85-J85 -> 90000 | E85: =E84+D85*G85/B85/100-K85 -> 1001.388889 | F85: =D85*G85/B85/100 -> 12.5 | G85: 5 | V85: 20 | W85: 42114
A86: =IF($K$1=2,IF(SUMPRODUCT(--(MONTH($A$6:A85)=MONTH(A85)))=30,EOMONTH(A85,0)+1,IF(AND(MONTH(A85)=2,DAY(A85)=DAY(DATE(YEAR(A85),3,0))),A85,A85+1)),A85+1) -> 2015-03-22 | B86: =IF($K$1 > 1, 360, DAY(DATE(YEAR(A86),3,0))+337) -> 360 | C86: =IF($K$1 = 2,30,36-DAY(A86+36-DAY(A86))) -> 31 | D86: =D85+I86-J86 -> 90000 | E86: =E85+D86*G86/B86/100-K86 -> 1013.888889 | F86: =D86*G86/B86/100 -> 12.5 | G86: 5 | V86: 21 | W86: 42115
A87: =IF($K$1=2,IF(SUMPRODUCT(--(MONTH($A$6:A86)=MONTH(A86)))=30,EOMONTH(A86,0)+1,IF(AND(MONTH(A86)=2,DAY(A86)=DAY(DATE(YEAR(A86),3,0))),A86,A86+1)),A86+1) -> 2015-03-23 | B87: =IF($K$1 > 1, 360, DAY(DATE(YEAR(A87),3,0))+337) -> 360 | C87: =IF($K$1 = 2,30,36-DAY(A87+36-DAY(A87))) -> 31 | D87: =D86+I87-J87 -> 90000 | E87: =E86+D87*G87/B87/100-K87 -> 1026.388889 | F87: =D87*G87/B87/100 -> 12.5 | G87: 5 | V87: 22 | W87: 42116
A88: =IF($K$1=2,IF(SUMPRODUCT(--(MONTH($A$6:A87)=MONTH(A87)))=30,EOMONTH(A87,0)+1,IF(AND(MONTH(A87)=2,DAY(A87)=DAY(DATE(YEAR(A87),3,0))),A87,A87+1)),A87+1) -> 2015-03-24 | B88: =IF($K$1 > 1, 360, DAY(DATE(YEAR(A88),3,0))+337) -> 360 | C88: =IF($K$1 = 2,30,36-DAY(A88+36-DAY(A88))) -> 31 | D88: =D87+I88-J88 -> 90000 | E88: =E87+D88*G88/B88/100-K88 -> 1038.888889 | F88: =D88*G88/B88/100 -> 12.5 | G88: 5 | V88: 23 | W88: 42117
A89: =IF($K$1=2,IF(SUMPRODUCT(--(MONTH($A$6:A88)=MONTH(A88)))=30,EOMONTH(A88,0)+1,IF(AND(MONTH(A88)=2,DAY(A88)=DAY(DATE(YEAR(A88),3,0))),A88,A88+1)),A88+1) -> 2015-03-25 | B89: =IF($K$1 > 1, 360, DAY(DATE(YEAR(A89),3,0))+337) -> 360 | C89: =IF($K$1 = 2,30,36-DAY(A89+36-DAY(A89))) -> 31 | D89: =D88+I89-J89 -> 90000 | E89: =E88+D89*G89/B89/100-K89 -> 1051.388889 | F89: =D89*G89/B89/100 -> 12.5 | G89: 5 | V89: 24 | W89: 42118
A90: =IF($K$1=2,IF(SUMPRODUCT(--(MONTH($A$6:A89)=MONTH(A89)))=30,EOMONTH(A89,0)+1,IF(AND(MONTH(A89)=2,DAY(A89)=DAY(DATE(YEAR(A89),3,0))),A89,A89+1)),A89+1) -> 2015-03-26 | B90: =IF($K$1 > 1, 360, DAY(DATE(YEAR(A90),3,0))+337) -> 360 | C90: =IF($K$1 = 2,30,36-DAY(A90+36-DAY(A90))) -> 31 | D90: =D89+I90-J90 -> 90000 | E90: =E89+D90*G90/B90/100-K90 -> 1063.888889 | F90: =D90*G90/B90/100 -> 12.5 | G90: 5 | V90: 25 | W90: 42119
A91: =IF($K$1=2,IF(SUMPRODUCT(--(MONTH($A$6:A90)=MONTH(A90)))=30,EOMONTH(A90,0)+1,IF(AND(MONTH(A90)=2,DAY(A90)=DAY(DATE(YEAR(A90),3,0))),A90,A90+1)),A90+1) -> 2015-03-27 | B91: =IF($K$1 > 1, 360, DAY(DATE(YEAR(A91),3,0))+337) -> 360 | C91: =IF($K$1 = 2,30,36-DAY(A91+36-DAY(A91))) -> 31 | D91: =D90+I91-J91 -> 90000 | E91: =E90+D91*G91/B91/100-K91 -> 1076.388889 | F91: =D91*G91/B91/100 -> 12.5 | G91: 5 | V91: 26 | W91: 42120
A92: =IF($K$1=2,IF(SUMPRODUCT(--(MONTH($A$6:A91)=MONTH(A91)))=30,EOMONTH(A91,0)+1,IF(AND(MONTH(A91)=2,DAY(A91)=DAY(DATE(YEAR(A91),3,0))),A91,A91+1)),A91+1) -> 2015-03-28 | B92: =IF($K$1 > 1, 360, DAY(DATE(YEAR(A92),3,0))+337) -> 360 | C92: =IF($K$1 = 2,30,36-DAY(A92+36-DAY(A92))) -> 31 | D92: =D91+I92-J92 -> 90000 | E92: =E91+D92*G92/B92/100-K92 -> 1088.888889 | F92: =D92*G92/B92/100 -> 12.5 | G92: 5 | V92: 27 | W92: 42121
A93: =IF($K$1=2,IF(SUMPRODUCT(--(MONTH($A$6:A92)=MONTH(A92)))=30,EOMONTH(A92,0)+1,IF(AND(MONTH(A92)=2,DAY(A92)=DAY(DATE(YEAR(A92),3,0))),A92,A92+1)),A92+1) -> 2015-03-29 | B93: =IF($K$1 > 1, 360, DAY(DATE(YEAR(A93),3,0))+337) -> 360 | C93: =IF($K$1 = 2,30,36-DAY(A93+36-DAY(A93))) -> 31 | D93: =D92+I93-J93 -> 90000 | E93: =E92+D93*G93/B93/100-K93 -> 1101.388889 | F93: =D93*G93/B93/100 -> 12.5 | G93: 5 | V93: 28 | W93: 42122
A94: =IF($K$1=2,IF(SUMPRODUCT(--(MONTH($A$6:A93)=MONTH(A93)))=30,EOMONTH(A93,0)+1,IF(AND(MONTH(A93)=2,DAY(A93)=DAY(DATE(YEAR(A93),3,0))),A93,A93+1)),A93+1) -> 2015-03-30 | B94: =IF($K$1 > 1, 360, DAY(DATE(YEAR(A94),3,0))+337) -> 360 | C94: =IF($K$1 = 2,30,36-DAY(A94+36-DAY(A94))) -> 31 | D94: =D93+I94-J94 -> 90000 | E94: =E93+D94*G94/B94/100-K94 -> 1113.888889 | F94: =D94*G94/B94/100 -> 12.5 | G94: 5 | V94: 29 | W94: 42123
A95: =IF($K$1=2,IF(SUMPRODUCT(--(MONTH($A$6:A94)=MONTH(A94)))=30,EOMONTH(A94,0)+1,IF(AND(MONTH(A94)=2,DAY(A94)=DAY(DATE(YEAR(A94),3,0))),A94,A94+1)),A94+1) -> 2015-03-31 | B95: =IF($K$1 > 1, 360, DAY(DATE(YEAR(A95),3,0))+337) -> 360 | C95: =IF($K$1 = 2,30,36-DAY(A95+36-DAY(A95))) -> 31 | D95: =D94+I95-J95 -> 90000 | E95: =E94+D95*G95/B95/100-K95 -> 1126.388889 | F95: =D95*G95/B95/100 -> 12.5 | G95: 5 | V95: 30 | W95: 42124
A96: =IF($K$1=2,IF(SUMPRODUCT(--(MONTH($A$6:A95)=MONTH(A95)))=30,EOMONTH(A95,0)+1,IF(AND(MONTH(A95)=2,DAY(A95)=DAY(DATE(YEAR(A95),3,0))),A95,A95+1)),A95+1) -> 2015-04-01 | B96: =IF($K$1 > 1, 360, DAY(DATE(YEAR(A96),3,0))+337) -> 360 | C96: =IF($K$1 = 2,30,36-DAY(A96+36-DAY(A96))) -> 30 | D96: =D95+I96-J96 -> 90000 | E96: =E95+D96*G96/B96/100-K96 -> 1138.888889 | F96: =D96*G96/B96/100 -> 12.5 | G96: 5 | V96: 1 | W96: 42124
A97: =IF($K$1=2,IF(SUMPRODUCT(--(MONTH($A$6:A96)=MONTH(A96)))=30,EOMONTH(A96,0)+1,IF(AND(MONTH(A96)=2,DAY(A96)=DAY(DATE(YEAR(A96),3,0))),A96,A96+1)),A96+1) -> 2015-04-02 | B97: =IF($K$1 > 1, 360, DAY(DATE(YEAR(A97),3,0))+337) -> 360 | C97: =IF($K$1 = 2,30,36-DAY(A97+36-DAY(A97))) -> 30 | D97: =D96+I97-J97 -> 90000 | E97: =E96+D97*G97/B97/100-K97 -> 1151.388889 | F97: =D97*G97/B97/100 -> 12.5 | G97: 5 | V97: 2 | W97: 42125
A98: =IF($K$1=2,IF(SUMPRODUCT(--(MONTH($A$6:A97)=MONTH(A97)))=30,EOMONTH(A97,0)+1,IF(AND(MONTH(A97)=2,DAY(A97)=DAY(DATE(YEAR(A97),3,0))),A97,A97+1)),A97+1) -> 2015-04-03 | B98: =IF($K$1 > 1, 360, DAY(DATE(YEAR(A98),3,0))+337) -> 360 | C98: =IF($K$1 = 2,30,36-DAY(A98+36-DAY(A98))) -> 30 | D98: =D97+I98-J98 -> 90000 | E98: =E97+D98*G98/B98/100-K98 -> 1163.888889 | F98: =D98*G98/B98/100 -> 12.5 | G98: 5 | V98: 3 | W98: 42126
A99: =IF($K$1=2,IF(SUMPRODUCT(--(MONTH($A$6:A98)=MONTH(A98)))=30,EOMONTH(A98,0)+1,IF(AND(MONTH(A98)=2,DAY(A98)=DAY(DATE(YEAR(A98),3,0))),A98,A98+1)),A98+1) -> 2015-04-04 | B99: =IF($K$1 > 1, 360, DAY(DATE(YEAR(A99),3,0))+337) -> 360 | C99: =IF($K$1 = 2,30,36-DAY(A99+36-DAY(A99))) -> 30 | D99: =D98+I99-J99 -> 90000 | E99: =E98+D99*G99/B99/100-K99 -> 1176.388889 | F99: =D99*G99/B99/100 -> 12.5 | G99: 5 | V99: 4 | W99: 42127
A100: =IF($K$1=2,IF(SUMPRODUCT(--(MONTH($A$6:A99)=MONTH(A99)))=30,EOMONTH(A99,0)+1,IF(AND(MONTH(A99)=2,DAY(A99)=DAY(DATE(YEAR(A99),3,0))),A99,A99+1)),A99+1) -> 2015-04-05 | B100: =IF($K$1 > 1, 360, DAY(DATE(YEAR(A100),3,0))+337) -> 360 | C100: =IF($K$1 = 2,30,36-DAY(A100+36-DAY(A100))) -> 30 | D100: =D99+I100-J100 -> 90000 | E100: =E99+D100*G100/B100/100-K100 -> 1188.888889 | F100: =D100*G100/B100/100 -> 12.5 | G100: 5 | V100: 5 | W100: 42128
A101: =IF($K$1=2,IF(SUMPRODUCT(--(MONTH($A$6:A100)=MONTH(A100)))=30,EOMONTH(A100,0)+1,IF(AND(MONTH(A100)=2,DAY(A100)=DAY(DATE(YEAR(A100),3,0))),A100,A100+1)),A100+1) -> 2015-04-06 | B101: =IF($K$1 > 1, 360, DAY(DATE(YEAR(A101),3,0))+337) -> 360 | C101: =IF($K$1 = 2,30,36-DAY(A101+36-DAY(A101))) -> 30 | D101: =D100+I101-J101 -> 90000 | E101: =E100+D101*G101/B101/100-K101 -> 1201.388889 | F101: =D101*G101/B101/100 -> 12.5 | G101: 5 | V101: 6 | W101: 42129
A102: =IF($K$1=2,IF(SUMPRODUCT(--(MONTH($A$6:A101)=MONTH(A101)))=30,EOMONTH(A101,0)+1,IF(AND(MONTH(A101)=2,DAY(A101)=DAY(DATE(YEAR(A101),3,0))),A101,A101+1)),A101+1) -> 2015-04-07 | B102: =IF($K$1 > 1, 360, DAY(DATE(YEAR(A102),3,0))+337) -> 360 | C102: =IF($K$1 = 2,30,36-DAY(A102+36-DAY(A102))) -> 30 | D102: =D101+I102-J102 -> 90000 | E102: =E101+D102*G102/B102/100-K102 -> 1213.888889 | F102: =D102*G102/B102/100 -> 12.5 | G102: 5 | V102: 7 | W102: 42130
A103: =IF($K$1=2,IF(SUMPRODUCT(--(MONTH($A$6:A102)=MONTH(A102)))=30,EOMONTH(A102,0)+1,IF(AND(MONTH(A102)=2,DAY(A102)=DAY(DATE(YEAR(A102),3,0))),A102,A102+1)),A102+1) -> 2015-04-08 | B103: =IF($K$1 > 1, 360, DAY(DATE(YEAR(A103),3,0))+337) -> 360 | C103: =IF($K$1 = 2,30,36-DAY(A103+36-DAY(A103))) -> 30 | D103: =D102+I103-J103 -> 90000 | E103: =E102+D103*G103/B103/100-K103 -> 1226.388889 | F103: =D103*G103/B103/100 -> 12.5 | G103: 5 | V103: 8 | W103: 42131
A104: =IF($K$1=2,IF(SUMPRODUCT(--(MONTH($A$6:A103)=MONTH(A103)))=30,EOMONTH(A103,0)+1,IF(AND(MONTH(A103)=2,DAY(A103)=DAY(DATE(YEAR(A103),3,0))),A103,A103+1)),A103+1) -> 2015-04-09 | B104: =IF($K$1 > 1, 360, DAY(DATE(YEAR(A104),3,0))+337) -> 360 | C104: =IF($K$1 = 2,30,36-DAY(A104+36-DAY(A104))) -> 30 | D104: =D103+I104-J104 -> 90000 | E104: =E103+D104*G104/B104/100-K104 -> 1238.888889 | F104: =D104*G104/B104/100 -> 12.5 | G104: 5 | V104: 9 | W104: 42132
A105: =IF($K$1=2,IF(SUMPRODUCT(--(MONTH($A$6:A104)=MONTH(A104)))=30,EOMONTH(A104,0)+1,IF(AND(MONTH(A104)=2,DAY(A104)=DAY(DATE(YEAR(A104),3,0))),A104,A104+1)),A104+1) -> 2015-04-10 | B105: =IF($K$1 > 1, 360, DAY(DATE(YEAR(A105),3,0))+337) -> 360 | C105: =IF($K$1 = 2,30,36-DAY(A105+36-DAY(A105))) -> 30 | D105: =D104+I105-J105 -> 90000 | E105: =E104+D105*G105/B105/100-K105 -> 1251.388889 | F105: =D105*G105/B105/100 -> 12.5 | G105: 5 | V105: 10 | W105: 42133
A106: =IF($K$1=2,IF(SUMPRODUCT(--(MONTH($A$6:A105)=MONTH(A105)))=30,EOMONTH(A105,0)+1,IF(AND(MONTH(A105)=2,DAY(A105)=DAY(DATE(YEAR(A105),3,0))),A105,A105+1)),A105+1) -> 2015-04-11 | B106: =IF($K$1 > 1, 360, DAY(DATE(YEAR(A106),3,0))+337) -> 360 | C106: =IF($K$1 = 2,30,36-DAY(A106+36-DAY(A106))) -> 30 | D106: =D105+I106-J106 -> 90000 | E106: =E105+D106*G106/B106/100-K106 -> 1263.888889 | F106: =D106*G106/B106/100 -> 12.5 | G106: 5 | V106: 11 | W106: 42134
A107: =IF($K$1=2,IF(SUMPRODUCT(--(MONTH($A$6:A106)=MONTH(A106)))=30,EOMONTH(A106,0)+1,IF(AND(MONTH(A106)=2,DAY(A106)=DAY(DATE(YEAR(A106),3,0))),A106,A106+1)),A106+1) -> 2015-04-12 | B107: =IF($K$1 > 1, 360, DAY(DATE(YEAR(A107),3,0))+337) -> 360 | C107: =IF($K$1 = 2,30,36-DAY(A107+36-DAY(A107))) -> 30 | D107: =D106+I107-J107 -> 90000 | E107: =E106+D107*G107/B107/100-K107 -> 1276.388889 | F107: =D107*G107/B107/100 -> 12.5 | G107: 5 | V107: 12 | W107: 42135
A108: =IF($K$1=2,IF(SUMPRODUCT(--(MONTH($A$6:A107)=MONTH(A107)))=30,EOMONTH(A107,0)+1,IF(AND(MONTH(A107)=2,DAY(A107)=DAY(DATE(YEAR(A107),3,0))),A107,A107+1)),A107+1) -> 2015-04-13 | B108: =IF($K$1 > 1, 360, DAY(DATE(YEAR(A108),3,0))+337) -> 360 | C108: =IF($K$1 = 2,30,36-DAY(A108+36-DAY(A108))) -> 30 | D108: =D107+I108-J108 -> 90000 | E108: =E107+D108*G108/B108/100-K108 -> 1288.888889 | F108: =D108*G108/B108/100 -> 12.5 | G108: 5 | V108: 13 | W108: 42136
A109: =IF($K$1=2,IF(SUMPRODUCT(--(MONTH($A$6:A108)=MONTH(A108)))=30,EOMONTH(A108,0)+1,IF(AND(MONTH(A108)=2,DAY(A108)=DAY(DATE(YEAR(A108),3,0))),A108,A108+1)),A108+1) -> 2015-04-14 | B109: =IF($K$1 > 1, 360, DAY(DATE(YEAR(A109),3,0))+337) -> 360 | C109: =IF($K$1 = 2,30,36-DAY(A109+36-DAY(A109))) -> 30 | D109: =D108+I109-J109 -> 90000 | E109: =E108+D109*G109/B109/100-K109 -> 1301.388889 | F109: =D109*G109/B109/100 -> 12.5 | G109: 5 | V109: 14 | W109: 42137
A110: =IF($K$1=2,IF(SUMPRODUCT(--(MONTH($A$6:A109)=MONTH(A109)))=30,EOMONTH(A109,0)+1,IF(AND(MONTH(A109)=2,DAY(A109)=DAY(DATE(YEAR(A109),3,0))),A109,A109+1)),A109+1) -> 2015-04-15 | B110: =IF($K$1 > 1, 360, DAY(DATE(YEAR(A110),3,0))+337) -> 360 | C110: =IF($K$1 = 2,30,36-DAY(A110+36-DAY(A110))) -> 30 | D110: =D109+I110-J110 -> 90000 | E110: =E109+D110*G110/B110/100-K110 -> 1313.888889 | F110: =D110*G110/B110/100 -> 12.5 | G110: 5 | V110: 15 | W110: 42138
A111: =IF($K$1=2,IF(SUMPRODUCT(--(MONTH($A$6:A110)=MONTH(A110)))=30,EOMONTH(A110,0)+1,IF(AND(MONTH(A110)=2,DAY(A110)=DAY(DATE(YEAR(A110),3,0))),A110,A110+1)),A110+1) -> 2015-04-16 | B111: =IF($K$1 > 1, 360, DAY(DATE(YEAR(A111),3,0))+337) -> 360 | C111: =IF($K$1 = 2,30,36-DAY(A111+36-DAY(A111))) -> 30 | D111: =D110+I111-J111 -> 90000 | E111: =E110+D111*G111/B111/100-K111 -> 1326.388889 | F111: =D111*G111/B111/100 -> 12.5 | G111: 5 | V111: 16 | W111: 42139
A112: =IF($K$1=2,IF(SUMPRODUCT(--(MONTH($A$6:A111)=MONTH(A111)))=30,EOMONTH(A111,0)+1,IF(AND(MONTH(A111)=2,DAY(A111)=DAY(DATE(YEAR(A111),3,0))),A111,A111+1)),A111+1) -> 2015-04-17 | B112: =IF($K$1 > 1, 360, DAY(DATE(YEAR(A112),3,0))+337) -> 360 | C112: =IF($K$1 = 2,30,36-DAY(A112+36-DAY(A112))) -> 30 | D112: =D111+I112-J112 -> 90000 | E112: =E111+D112*G112/B112/100-K112 -> 1338.888889 | F112: =D112*G112/B112/100 -> 12.5 | G112: 5 | V112: 17 | W112: 42140
A113: =IF($K$1=2,IF(SUMPRODUCT(--(MONTH($A$6:A112)=MONTH(A112)))=30,EOMONTH(A112,0)+1,IF(AND(MONTH(A112)=2,DAY(A112)=DAY(DATE(YEAR(A112),3,0))),A112,A112+1)),A112+1) -> 2015-04-18 | B113: =IF($K$1 > 1, 360, DAY(DATE(YEAR(A113),3,0))+337) -> 360 | C113: =IF($K$1 = 2,30,36-DAY(A113+36-DAY(A113))) -> 30 | D113: =D112+I113-J113 -> 90000 | E113: =E112+D113*G113/B113/100-K113 -> 1351.388889 | F113: =D113*G113/B113/100 -> 12.5 | G113: 5 | V113: 18 | W113: 42141
A114: =IF($K$1=2,IF(SUMPRODUCT(--(MONTH($A$6:A113)=MONTH(A113)))=30,EOMONTH(A113,0)+1,IF(AND(MONTH(A113)=2,DAY(A113)=DAY(DATE(YEAR(A113),3,0))),A113,A113+1)),A113+1) -> 2015-04-19 | B114: =IF($K$1 > 1, 360, DAY(DATE(YEAR(A114),3,0))+337) -> 360 | C114: =IF($K$1 = 2,30,36-DAY(A114+36-DAY(A114))) -> 30 | D114: =D113+I114-J114 -> 90000 | E114: =E113+D114*G114/B114/100-K114 -> 1363.888889 | F114: =D114*G114/B114/100 -> 12.5 | G114: 5 | V114: 19 | W114: 42142
A115: =IF($K$1=2,IF(SUMPRODUCT(--(MONTH($A$6:A114)=MONTH(A114)))=30,EOMONTH(A114,0)+1,IF(AND(MONTH(A114)=2,DAY(A114)=DAY(DATE(YEAR(A114),3,0))),A114,A114+1)),A114+1) -> 2015-04-20 | B115: =IF($K$1 > 1, 360, DAY(DATE(YEAR(A115),3,0))+337) -> 360 | C115: =IF($K$1 = 2,30,36-DAY(A115+36-DAY(A115))) -> 30 | D115: =D114+I115-J115 -> 90000 | E115: =E114+D115*G115/B115/100-K115 -> 1376.388889 | F115: =D115*G115/B115/100 -> 12.5 | G115: 5 | V115: 20 | W115: 42143
A116: =IF($K$1=2,IF(SUMPRODUCT(--(MONTH($A$6:A115)=MONTH(A115)))=30,EOMONTH(A115,0)+1,IF(AND(MONTH(A115)=2,DAY(A115)=DAY(DATE(YEAR(A115),3,0))),A115,A115+1)),A115+1) -> 2015-04-21 | B116: =IF($K$1 > 1, 360, DAY(DATE(YEAR(A116),3,0))+337) -> 360 | C116: =IF($K$1 = 2,30,36-DAY(A116+36-DAY(A116))) -> 30 | D116: =D115+I116-J116 -> 90000 | E116: =E115+D116*G116/B116/100-K116 -> 1388.888889 | F116: =D116*G116/B116/100 -> 12.5 | G116: 5 | V116: 21 | W116: 42144
A117: =IF($K$1=2,IF(SUMPRODUCT(--(MONTH($A$6:A116)=MONTH(A116)))=30,EOMONTH(A116,0)+1,IF(AND(MONTH(A116)=2,DAY(A116)=DAY(DATE(YEAR(A116),3,0))),A116,A116+1)),A116+1) -> 2015-04-22 | B117: =IF($K$1 > 1, 360, DAY(DATE(YEAR(A117),3,0))+337) -> 360 | C117: =IF($K$1 = 2,30,36-DAY(A117+36-DAY(A117))) -> 30 | D117: =D116+I117-J117 -> 90000 | E117: =E116+D117*G117/B117/100-K117 -> 1401.388889 | F117: =D117*G117/B117/100 -> 12.5 | G117: 5 | V117: 22 | W117: 42145
A118: =IF($K$1=2,IF(SUMPRODUCT(--(MONTH($A$6:A117)=MONTH(A117)))=30,EOMONTH(A117,0)+1,IF(AND(MONTH(A117)=2,DAY(A117)=DAY(DATE(YEAR(A117),3,0))),A117,A117+1)),A117+1) -> 2015-04-23 | B118: =IF($K$1 > 1, 360, DAY(DATE(YEAR(A118),3,0))+337) -> 360 | C118: =IF($K$1 = 2,30,36-DAY(A118+36-DAY(A118))) -> 30 | D118: =D117+I118-J118 -> 90000 | E118: =E117+D118*G118/B118/100-K118 -> 1413.888889 | F118: =D118*G118/B118/100 -> 12.5 | G118: 5 | V118: 23 | W118: 42146
A119: =IF($K$1=2,IF(SUMPRODUCT(--(MONTH($A$6:A118)=MONTH(A118)))=30,EOMONTH(A118,0)+1,IF(AND(MONTH(A118)=2,DAY(A118)=DAY(DATE(YEAR(A118),3,0))),A118,A118+1)),A118+1) -> 2015-04-24 | B119: =IF($K$1 > 1, 360, DAY(DATE(YEAR(A119),3,0))+337) -> 360 | C119: =IF($K$1 = 2,30,36-DAY(A119+36-DAY(A119))) -> 30 | D119: =D118+I119-J119 -> 90000 | E119: =E118+D119*G119/B119/100-K119 -> 1426.388889 | F119: =D119*G119/B119/100 -> 12.5 | G119: 5 | V119: 24 | W119: 42147
A120: =IF($K$1=2,IF(SUMPRODUCT(--(MONTH($A$6:A119)=MONTH(A119)))=30,EOMONTH(A119,0)+1,IF(AND(MONTH(A119)=2,DAY(A119)=DAY(DATE(YEAR(A119),3,0))),A119,A119+1)),A119+1) -> 2015-04-25 | B120: =IF($K$1 > 1, 360, DAY(DATE(YEAR(A120),3,0))+337) -> 360 | C120: =IF($K$1 = 2,30,36-DAY(A120+36-DAY(A120))) -> 30 | D120: =D119+I120-J120 -> 90000 | E120: =E119+D120*G120/B120/100-K120 -> 1438.888889 | F120: =D120*G120/B120/100 -> 12.5 | G120: 5 | V120: 25 | W120: 42148
A121: =IF($K$1=2,IF(SUMPRODUCT(--(MONTH($A$6:A120)=MONTH(A120)))=30,EOMONTH(A120,0)+1,IF(AND(MONTH(A120)=2,DAY(A120)=DAY(DATE(YEAR(A120),3,0))),A120,A120+1)),A120+1) -> 2015-04-26 | B121: =IF($K$1 > 1, 360, DAY(DATE(YEAR(A121),3,0))+337) -> 360 | C121: =IF($K$1 = 2,30,36-DAY(A121+36-DAY(A121))) -> 30 | D121: =D120+I121-J121 -> 90000 | E121: =E120+D121*G121/B121/100-K121 -> 1451.388889 | F121: =D121*G121/B121/100 -> 12.5 | G121: 5 | V121: 26 | W121: 42149
A122: =IF($K$1=2,IF(SUMPRODUCT(--(MONTH($A$6:A121)=MONTH(A121)))=30,EOMONTH(A121,0)+1,IF(AND(MONTH(A121)=2,DAY(A121)=DAY(DATE(YEAR(A121),3,0))),A121,A121+1)),A121+1) -> 2015-04-27 | B122: =IF($K$1 > 1, 360, DAY(DATE(YEAR(A122),3,0))+337) -> 360 | C122: =IF($K$1 = 2,30,36-DAY(A122+36-DAY(A122))) -> 30 | D122: =D121+I122-J122 -> 90000 | E122: =E121+D122*G122/B122/100-K122 -> 1463.888889 | F122: =D122*G122/B122/100 -> 12.5 | G122: 5 | V122: 27 | W122: 42150
A123: =IF($K$1=2,IF(SUMPRODUCT(--(MONTH($A$6:A122)=MONTH(A122)))=30,EOMONTH(A122,0)+1,IF(AND(MONTH(A122)=2,DAY(A122)=DAY(DATE(YEAR(A122),3,0))),A122,A122+1)),A122+1) -> 2015-04-28 | B123: =IF($K$1 > 1, 360, DAY(DATE(YEAR(A123),3,0))+337) -> 360 | C123: =IF($K$1 = 2,30,36-DAY(A123+36-DAY(A123))) -> 30 | D123: =D122+I123-J123 -> 90000 | E123: =E122+D123*G123/B123/100-K123 -> 1476.388889 | F123: =D123*G123/B123/100 -> 12.5 | G123: 5 | V123: 28 | W123: 42151
A124: =IF($K$1=2,IF(SUMPRODUCT(--(MONTH($A$6:A123)=MONTH(A123)))=30,EOMONTH(A123,0)+1,IF(AND(MONTH(A123)=2,DAY(A123)=DAY(DATE(YEAR(A123),3,0))),A123,A123+1)),A123+1) -> 2015-04-29 | B124: =IF($K$1 > 1, 360, DAY(DATE(YEAR(A124),3,0))+337) -> 360 | C124: =IF($K$1 = 2,30,36-DAY(A124+36-DAY(A124))) -> 30 | D124: =D123+I124-J124 -> 90000 | E124: =E123+D124*G124/B124/100-K124 -> 1488.888889 | F124: =D124*G124/B124/100 -> 12.5 | G124: 5 | V124: 29 | W124: 42152
A125: =IF($K$1=2,IF(SUMPRODUCT(--(MONTH($A$6:A124)=MONTH(A124)))=30,EOMONTH(A124,0)+1,IF(AND(MONTH(A124)=2,DAY(A124)=DAY(DATE(YEAR(A124),3,0))),A124,A124+1)),A124+1) -> 2015-04-30 | B125: =IF($K$1 > 1, 360, DAY(DATE(YEAR(A125),3,0))+337) -> 360 | C125: =IF($K$1 = 2,30,36-DAY(A125+36-DAY(A125))) -> 30 | D125: =D124+I125-J125 -> 90000 | E125: =E124+D125*G125/B125/100-K125 -> 1501.388889 | F125: =D125*G125/B125/100 -> 12.5 | G125: 5 | V125: 30 | W125: 42153
A126: =IF($K$1=2,IF(SUMPRODUCT(--(MONTH($A$6:A125)=MONTH(A125)))=30,EOMONTH(A125,0)+1,IF(AND(MONTH(A125)=2,DAY(A125)=DAY(DATE(YEAR(A125),3,0))),A125,A125+1)),A125+1) -> 2015-05-01 | B126: =IF($K$1 > 1, 360, DAY(DATE(YEAR(A126),3,0))+337) -> 360 | C126: =IF($K$1 = 2,30,36-DAY(A126+36-DAY(A126))) -> 31 | D126: =D125+I126-J126 -> 90000 | E126: =E125+D126*G126/B126/100-K126 -> 1513.888889 | F126: =D126*G126/B126/100 -> 12.5 | G126: 5 | V126: 1 | W126: 42154
A127: =IF($K$1=2,IF(SUMPRODUCT(--(MONTH($A$6:A126)=MONTH(A126)))=30,EOMONTH(A126,0)+1,IF(AND(MONTH(A126)=2,DAY(A126)=DAY(DATE(YEAR(A126),3,0))),A126,A126+1)),A126+1) -> 2015-05-02 | B127: =IF($K$1 > 1, 360, DAY(DATE(YEAR(A127),3,0))+337) -> 360 | C127: =IF($K$1 = 2,30,36-DAY(A127+36-DAY(A127))) -> 31 | D127: =D126+I127-J127 -> 90000 | E127: =E126+D127*G127/B127/100-K127 -> 1526.388889 | F127: =D127*G127/B127/100 -> 12.5 | G127: 5 | V127: 2 | W127: 42156
A128: =IF($K$1=2,IF(SUMPRODUCT(--(MONTH($A$6:A127)=MONTH(A127)))=30,EOMONTH(A127,0)+1,IF(AND(MONTH(A127)=2,DAY(A127)=DAY(DATE(YEAR(A127),3,0))),A127,A127+1)),A127+1) -> 2015-05-03 | B128: =IF($K$1 > 1, 360, DAY(DATE(YEAR(A128),3,0))+337) -> 360 | C128: =IF($K$1 = 2,30,36-DAY(A128+36-DAY(A128))) -> 31 | D128: =D127+I128-J128 -> 90000 | E128: =E127+D128*G128/B128/100-K128 -> 1538.888889 | F128: =D128*G128/B128/100 -> 12.5 | G128: 5 | V128: 3 | W128: 42157
A129: =IF($K$1=2,IF(SUMPRODUCT(--(MONTH($A$6:A128)=MONTH(A128)))=30,EOMONTH(A128,0)+1,IF(AND(MONTH(A128)=2,DAY(A128)=DAY(DATE(YEAR(A128),3,0))),A128,A128+1)),A128+1) -> 2015-05-04 | B129: =IF($K$1 > 1, 360, DAY(DATE(YEAR(A129),3,0))+337) -> 360 | C129: =IF($K$1 = 2,30,36-DAY(A129+36-DAY(A129))) -> 31 | D129: =D128+I129-J129 -> 90000 | E129: =E128+D129*G129/B129/100-K129 -> 1551.388889 | F129: =D129*G129/B129/100 -> 12.5 | G129: 5 | V129: 4 | W129: 42158
A130: =IF($K$1=2,IF(SUMPRODUCT(--(MONTH($A$6:A129)=MONTH(A129)))=30,EOMONTH(A129,0)+1,IF(AND(MONTH(A129)=2,DAY(A129)=DAY(DATE(YEAR(A129),3,0))),A129,A129+1)),A129+1) -> 2015-05-05 | B130: =IF($K$1 > 1, 360, DAY(DATE(YEAR(A130),3,0))+337) -> 360 | C130: =IF($K$1 = 2,30,36-DAY(A130+36-DAY(A130))) -> 31 | D130: =D129+I130-J130 -> 90000 | E130: =E129+D130*G130/B130/100-K130 -> 1563.888889 | F130: =D130*G130/B130/100 -> 12.5 | G130: 5 | V130: 5 | W130: 42159
A131: =IF($K$1=2,IF(SUMPRODUCT(--(MONTH($A$6:A130)=MONTH(A130)))=30,EOMONTH(A130,0)+1,IF(AND(MONTH(A130)=2,DAY(A130)=DAY(DATE(YEAR(A130),3,0))),A130,A130+1)),A130+1) -> 2015-05-06 | B131: =IF($K$1 > 1, 360, DAY(DATE(YEAR(A131),3,0))+337) -> 360 | C131: =IF($K$1 = 2,30,36-DAY(A131+36-DAY(A131))) -> 31 | D131: =D130+I131-J131 -> 90000 | E131: =E130+D131*G131/B131/100-K131 -> 1576.388889 | F131: =D131*G131/B131/100 -> 12.5 | G131: 5 | V131: 6 | W131: 42160
A132: =IF($K$1=2,IF(SUMPRODUCT(--(MONTH($A$6:A131)=MONTH(A131)))=30,EOMONTH(A131,0)+1,IF(AND(MONTH(A131)=2,DAY(A131)=DAY(DATE(YEAR(A131),3,0))),A131,A131+1)),A131+1) -> 2015-05-07 | B132: =IF($K$1 > 1, 360, DAY(DATE(YEAR(A132),3,0))+337) -> 360 | C132: =IF($K$1 = 2,30,36-DAY(A132+36-DAY(A132))) -> 31 | D132: =D131+I132-J132 -> 90000 | E132: =E131+D132*G132/B132/100-K132 -> 1588.888889 | F132: =D132*G132/B132/100 -> 12.5 | G132: 5 | V132: 7 | W132: 42161
A133: =IF($K$1=2,IF(SUMPRODUCT(--(MONTH($A$6:A132)=MONTH(A132)))=30,EOMONTH(A132,0)+1,IF(AND(MONTH(A132)=2,DAY(A132)=DAY(DATE(YEAR(A132),3,0))),A132,A132+1)),A132+1) -> 2015-05-08 | B133: =IF($K$1 > 1, 360, DAY(DATE(YEAR(A133),3,0))+337) -> 360 | C133: =IF($K$1 = 2,30,36-DAY(A133+36-DAY(A133))) -> 31 | D133: =D132+I133-J133 -> 90000 | E133: =E132+D133*G133/B133/100-K133 -> 1601.388889 | F133: =D133*G133/B133/100 -> 12.5 | G133: 5 | V133: 8 | W133: 42162
A134: =IF($K$1=2,IF(SUMPRODUCT(--(MONTH($A$6:A133)=MONTH(A133)))=30,EOMONTH(A133,0)+1,IF(AND(MONTH(A133)=2,DAY(A133)=DAY(DATE(YEAR(A133),3,0))),A133,A133+1)),A133+1) -> 2015-05-09 | B134: =IF($K$1 > 1, 360, DAY(DATE(YEAR(A134),3,0))+337) -> 360 | C134: =IF($K$1 = 2,30,36-DAY(A134+36-DAY(A134))) -> 31 | D134: =D133+I134-J134 -> 90000 | E134: =E133+D134*G134/B134/100-K134 -> 1613.888889 | F134: =D134*G134/B134/100 -> 12.5 | G134: 5 | V134: 9 | W134: 42163
A135: =IF($K$1=2,IF(SUMPRODUCT(--(MONTH($A$6:A134)=MONTH(A134)))=30,EOMONTH(A134,0)+1,IF(AND(MONTH(A134)=2,DAY(A134)=DAY(DATE(YEAR(A134),3,0))),A134,A134+1)),A134+1) -> 2015-05-10 | B135: =IF($K$1 > 1, 360, DAY(DATE(YEAR(A135),3,0))+337) -> 360 | C135: =IF($K$1 = 2,30,36-DAY(A135+36-DAY(A135))) -> 31 | D135: =D134+I135-J135 -> 90000 | E135: =E134+D135*G135/B135/100-K135 -> 1626.388889 | F135: =D135*G135/B135/100 -> 12.5 | G135: 5 | V135: 10 | W135: 42164
A136: =IF($K$1=2,IF(SUMPRODUCT(--(MONTH($A$6:A135)=MONTH(A135)))=30,EOMONTH(A135,0)+1,IF(AND(MONTH(A135)=2,DAY(A135)=DAY(DATE(YEAR(A135),3,0))),A135,A135+1)),A135+1) -> 2015-05-11 | B136: =IF($K$1 > 1, 360, DAY(DATE(YEAR(A136),3,0))+337) -> 360 | C136: =IF($K$1 = 2,30,36-DAY(A136+36-DAY(A136))) -> 31 | D136: =D135+I136-J136 -> 90000 | E136: =E135+D136*G136/B136/100-K136 -> 1638.888889 | F136: =D136*G136/B136/100 -> 12.5 | G136: =IF(ISNUMBER(H136),H136,G135) -> 5 | V136: =IF(V135<30,V135+1,1) -> 11 | W136: =EDATE($A135,1) -> 42165
A137: =IF($K$1=2,IF(SUMPRODUCT(--(MONTH($A$6:A136)=MONTH(A136)))=30,EOMONTH(A136,0)+1,IF(AND(MONTH(A136)=2,DAY(A136)=DAY(DATE(YEAR(A136),3,0))),A136,A136+1)),A136+1) -> 2015-05-12 | B137: =IF($K$1 > 1, 360, DAY(DATE(YEAR(A137),3,0))+337) -> 360 | C137: =IF($K$1 = 2,30,36-DAY(A137+36-DAY(A137))) -> 31 | D137: =D136+I137-J137 -> 90000 | E137: =E136+D137*G137/B137/100-K137 -> 1651.388889 | F137: =D137*G137/B137/100 -> 12.5 | G137: 5 | V137: 12 | W137: 42166
A138: =IF($K$1=2,IF(SUMPRODUCT(--(MONTH($A$6:A137)=MONTH(A137)))=30,EOMONTH(A137,0)+1,IF(AND(MONTH(A137)=2,DAY(A137)=DAY(DATE(YEAR(A137),3,0))),A137,A137+1)),A137+1) -> 2015-05-13 | B138: =IF($K$1 > 1, 360, DAY(DATE(YEAR(A138),3,0))+337) -> 360 | C138: =IF($K$1 = 2,30,36-DAY(A138+36-DAY(A138))) -> 31 | D138: =D137+I138-J138 -> 90000 | E138: =E137+D138*G138/B138/100-K138 -> 1663.888889 | F138: =D138*G138/B138/100 -> 12.5 | G138: 5 | V138: 13 | W138: 42167
A139: =IF($K$1=2,IF(SUMPRODUCT(--(MONTH($A$6:A138)=MONTH(A138)))=30,EOMONTH(A138,0)+1,IF(AND(MONTH(A138)=2,DAY(A138)=DAY(DATE(YEAR(A138),3,0))),A138,A138+1)),A138+1) -> 2015-05-14 | B139: =IF($K$1 > 1, 360, DAY(DATE(YEAR(A139),3,0))+337) -> 360 | C139: =IF($K$1 = 2,30,36-DAY(A139+36-DAY(A139))) -> 31 | D139: =D138+I139-J139 -> 90000 | E139: =E138+D139*G139/B139/100-K139 -> 1676.388889 | F139: =D139*G139/B139/100 -> 12.5 | G139: 5 | V139: 14 | W139: 42168
A140: =IF($K$1=2,IF(SUMPRODUCT(--(MONTH($A$6:A139)=MONTH(A139)))=30,EOMONTH(A139,0)+1,IF(AND(MONTH(A139)=2,DAY(A139)=DAY(DATE(YEAR(A139),3,0))),A139,A139+1)),A139+1) -> 2015-05-15 | B140: =IF($K$1 > 1, 360, DAY(DATE(YEAR(A140),3,0))+337) -> 360 | C140: =IF($K$1 = 2,30,36-DAY(A140+36-DAY(A140))) -> 31 | D140: =D139+I140-J140 -> 90000 | E140: =E139+D140*G140/B140/100-K140 -> 1688.888889 | F140: =D140*G140/B140/100 -> 12.5 | G140: 5 | V140: 15 | W140: 42169
A141: =IF($K$1=2,IF(SUMPRODUCT(--(MONTH($A$6:A140)=MONTH(A140)))=30,EOMONTH(A140,0)+1,IF(AND(MONTH(A140)=2,DAY(A140)=DAY(DATE(YEAR(A140),3,0))),A140,A140+1)),A140+1) -> 2015-05-16 | B141: =IF($K$1 > 1, 360, DAY(DATE(YEAR(A141),3,0))+337) -> 360 | C141: =IF($K$1 = 2,30,36-DAY(A141+36-DAY(A141))) -> 31 | D141: =D140+I141-J141 -> 90000 | E141: =E140+D141*G141/B141/100-K141 -> 1701.388889 | F141: =D141*G141/B141/100 -> 12.5 | G141: 5 | V141: 16 | W141: 42170
A142: =IF($K$1=2,IF(SUMPRODUCT(--(MONTH($A$6:A141)=MONTH(A141)))=30,EOMONTH(A141,0)+1,IF(AND(MONTH(A141)=2,DAY(A141)=DAY(DATE(YEAR(A141),3,0))),A141,A141+1)),A141+1) -> 2015-05-17 | B142: =IF($K$1 > 1, 360, DAY(DATE(YEAR(A142),3,0))+337) -> 360 | C142: =IF($K$1 = 2,30,36-DAY(A142+36-DAY(A142))) -> 31 | D142: =D141+I142-J142 -> 90000 | E142: =E141+D142*G142/B142/100-K142 -> 1713.888889 | F142: =D142*G142/B142/100 -> 12.5 | G142: 5 | V142: 17 | W142: 42171
A143: =IF($K$1=2,IF(SUMPRODUCT(--(MONTH($A$6:A142)=MONTH(A142)))=30,EOMONTH(A142,0)+1,IF(AND(MONTH(A142)=2,DAY(A142)=DAY(DATE(YEAR(A142),3,0))),A142,A142+1)),A142+1) -> 2015-05-18 | B143: =IF($K$1 > 1, 360, DAY(DATE(YEAR(A143),3,0))+337) -> 360 | C143: =IF($K$1 = 2,30,36-DAY(A143+36-DAY(A143))) -> 31 | D143: =D142+I143-J143 -> 90000 | E143: =E142+D143*G143/B143/100-K143 -> 1726.388889 | F143: =D143*G143/B143/100 -> 12.5 | G143: 5 | V143: 18 | W143: 42172
A144: =IF($K$1=2,IF(SUMPRODUCT(--(MONTH($A$6:A143)=MONTH(A143)))=30,EOMONTH(A143,0)+1,IF(AND(MONTH(A143)=2,DAY(A143)=DAY(DATE(YEAR(A143),3,0))),A143,A143+1)),A143+1) -> 2015-05-19 | B144: =IF($K$1 > 1, 360, DAY(DATE(YEAR(A144),3,0))+337) -> 360 | C144: =IF($K$1 = 2,30,36-DAY(A144+36-DAY(A144))) -> 31 | D144: =D143+I144-J144 -> 90000 | E144: =E143+D144*G144/B144/100-K144 -> 1738.888889 | F144: =D144*G144/B144/100 -> 12.5 | G144: 5 | V144: 19 | W144: 42173
A145: =IF($K$1=2,IF(SUMPRODUCT(--(MONTH($A$6:A144)=MONTH(A144)))=30,EOMONTH(A144,0)+1,IF(AND(MONTH(A144)=2,DAY(A144)=DAY(DATE(YEAR(A144),3,0))),A144,A144+1)),A144+1) -> 2015-05-20 | B145: =IF($K$1 > 1, 360, DAY(DATE(YEAR(A145),3,0))+337) -> 360 | C145: =IF($K$1 = 2,30,36-DAY(A145+36-DAY(A145))) -> 31 | D145: =D144+I145-J145 -> 90000 | E145: =E144+D145*G145/B145/100-K145 -> 1751.388889 | F145: =D145*G145/B145/100 -> 12.5 | G145: 5 | V145: 20 | W145: 42174
A146: =IF($K$1=2,IF(SUMPRODUCT(--(MONTH($A$6:A145)=MONTH(A145)))=30,EOMONTH(A145,0)+1,IF(AND(MONTH(A145)=2,DAY(A145)=DAY(DATE(YEAR(A145),3,0))),A145,A145+1)),A145+1) -> 2015-05-21 | B146: =IF($K$1 > 1, 360, DAY(DATE(YEAR(A146),3,0))+337) -> 360 | C146: =IF($K$1 = 2,30,36-DAY(A146+36-DAY(A146))) -> 31 | D146: =D145+I146-J146 -> 90000 | E146: =E145+D146*G146/B146/100-K146 -> 1763.888889 | F146: =D146*G146/B146/100 -> 12.5 | G146: 5 | V146: 21 | W146: 42175
A147: =IF($K$1=2,IF(SUMPRODUCT(--(MONTH($A$6:A146)=MONTH(A146)))=30,EOMONTH(A146,0)+1,IF(AND(MONTH(A146)=2,DAY(A146)=DAY(DATE(YEAR(A146),3,0))),A146,A146+1)),A146+1) -> 2015-05-22 | B147: =IF($K$1 > 1, 360, DAY(DATE(YEAR(A147),3,0))+337) -> 360 | C147: =IF($K$1 = 2,30,36-DAY(A147+36-DAY(A147))) -> 31 | D147: =D146+I147-J147 -> 90000 | E147: =E146+D147*G147/B147/100-K147 -> 1776.388889 | F147: =D147*G147/B147/100 -> 12.5 | G147: 5 | V147: 22 | W147: 42176
A148: =IF($K$1=2,IF(SUMPRODUCT(--(MONTH($A$6:A147)=MONTH(A147)))=30,EOMONTH(A147,0)+1,IF(AND(MONTH(A147)=2,DAY(A147)=DAY(DATE(YEAR(A147),3,0))),A147,A147+1)),A147+1) -> 2015-05-23 | B148: =IF($K$1 > 1, 360, DAY(DATE(YEAR(A148),3,0))+337) -> 360 | C148: =IF($K$1 = 2,30,36-DAY(A148+36-DAY(A148))) -> 31 | D148: =D147+I148-J148 -> 90000 | E148: =E147+D148*G148/B148/100-K148 -> 1788.888889 | F148: =D148*G148/B148/100 -> 12.5 | G148: 5 | V148: 23 | W148: 42177
A149: =IF($K$1=2,IF(SUMPRODUCT(--(MONTH($A$6:A148)=MONTH(A148)))=30,EOMONTH(A148,0)+1,IF(AND(MONTH(A148)=2,DAY(A148)=DAY(DATE(YEAR(A148),3,0))),A148,A148+1)),A148+1) -> 2015-05-24 | B149: =IF($K$1 > 1, 360, DAY(DATE(YEAR(A149),3,0))+337) -> 360 | C149: =IF($K$1 = 2,30,36-DAY(A149+36-DAY(A149))) -> 31 | D149: =D148+I149-J149 -> 90000 | E149: =E148+D149*G149/B149/100-K149 -> 1801.388889 | F149: =D149*G149/B149/100 -> 12.5 | G149: 5 | V149: 24 | W149: 42178
A150: =IF($K$1=2,IF(SUMPRODUCT(--(MONTH($A$6:A149)=MONTH(A149)))=30,EOMONTH(A149,0)+1,IF(AND(MONTH(A149)=2,DAY(A149)=DAY(DATE(YEAR(A149),3,0))),A149,A149+1)),A149+1) -> 2015-05-25 | B150: =IF($K$1 > 1, 360, DAY(DATE(YEAR(A150),3,0))+337) -> 360 | C150: =IF($K$1 = 2,30,36-DAY(A150+36-DAY(A150))) -> 31 | D150: =D149+I150-J150 -> 90000 | E150: =E149+D150*G150/B150/100-K150 -> 1813.888889 | F150: =D150*G150/B150/100 -> 12.5 | G150: 5 | V150: 25 | W150: 42179
A151: =IF($K$1=2,IF(SUMPRODUCT(--(MONTH($A$6:A150)=MONTH(A150)))=30,EOMONTH(A150,0)+1,IF(AND(MONTH(A150)=2,DAY(A150)=DAY(DATE(YEAR(A150),3,0))),A150,A150+1)),A150+1) -> 2015-05-26 | B151: =IF($K$1 > 1, 360, DAY(DATE(YEAR(A151),3,0))+337) -> 360 | C151: =IF($K$1 = 2,30,36-DAY(A151+36-DAY(A151))) -> 31 | D151: =D150+I151-J151 -> 90000 | E151: =E150+D151*G151/B151/100-K151 -> 1826.388889 | F151: =D151*G151/B151/100 -> 12.5 | G151: 5 | V151: 26 | W151: 42180
A152: =IF($K$1=2,IF(SUMPRODUCT(--(MONTH($A$6:A151)=MONTH(A151)))=30,EOMONTH(A151,0)+1,IF(AND(MONTH(A151)=2,DAY(A151)=DAY(DATE(YEAR(A151),3,0))),A151,A151+1)),A151+1) -> 2015-05-27 | B152: =IF($K$1 > 1, 360, DAY(DATE(YEAR(A152),3,0))+337) -> 360 | C152: =IF($K$1 = 2,30,36-DAY(A152+36-DAY(A152))) -> 31 | D152: =D151+I152-J152 -> 90000 | E152: =E151+D152*G152/B152/100-K152 -> 1838.888889 | F152: =D152*G152/B152/100 -> 12.5 | G152: 5 | V152: 27 | W152: 42181
A153: =IF($K$1=2,IF(SUMPRODUCT(--(MONTH($A$6:A152)=MONTH(A152)))=30,EOMONTH(A152,0)+1,IF(AND(MONTH(A152)=2,DAY(A152)=DAY(DATE(YEAR(A152),3,0))),A152,A152+1)),A152+1) -> 2015-05-28 | B153: =IF($K$1 > 1, 360, DAY(DATE(YEAR(A153),3,0))+337) -> 360 | C153: =IF($K$1 = 2,30,36-DAY(A153+36-DAY(A153))) -> 31 | D153: =D152+I153-J153 -> 90000 | E153: =E152+D153*G153/B153/100-K153 -> 1851.388889 | F153: =D153*G153/B153/100 -> 12.5 | G153: 5 | V153: 28 | W153: 42182
A154: =IF($K$1=2,IF(SUMPRODUCT(--(MONTH($A$6:A153)=MONTH(A153)))=30,EOMONTH(A153,0)+1,IF(AND(MONTH(A153)=2,DAY(A153)=DAY(DATE(YEAR(A153),3,0))),A153,A153+1)),A153+1) -> 2015-05-29 | B154: =IF($K$1 > 1, 360, DAY(DATE(YEAR(A154),3,0))+337) -> 360 | C154: =IF($K$1 = 2,30,36-DAY(A154+36-DAY(A154))) -> 31 | D154: =D153+I154-J154 -> 90000 | E154: =E153+D154*G154/B154/100-K154 -> 1863.888889 | F154: =D154*G154/B154/100 -> 12.5 | G154: 5 | V154: 29 | W154: 42183
A155: =IF($K$1=2,IF(SUMPRODUCT(--(MONTH($A$6:A154)=MONTH(A154)))=30,EOMONTH(A154,0)+1,IF(AND(MONTH(A154)=2,DAY(A154)=DAY(DATE(YEAR(A154),3,0))),A154,A154+1)),A154+1) -> 2015-05-30 | B155: =IF($K$1 > 1, 360, DAY(DATE(YEAR(A155),3,0))+337) -> 360 | C155: =IF($K$1 = 2,30,36-DAY(A155+36-DAY(A155))) -> 31 | D155: =D154+I155-J155 -> 90000 | E155: =E154+D155*G155/B155/100-K155 -> 1876.388889 | F155: =D155*G155/B155/100 -> 12.5 | G155: 5 | V155: 30 | W155: 42184
A156: =IF($K$1=2,IF(SUMPRODUCT(--(MONTH($A$6:A155)=MONTH(A155)))=30,EOMONTH(A155,0)+1,IF(AND(MONTH(A155)=2,DAY(A155)=DAY(DATE(YEAR(A155),3,0))),A155,A155+1)),A155+1) -> 2015-05-31 | B156: =IF($K$1 > 1, 360, DAY(DATE(YEAR(A156),3,0))+337) -> 360 | C156: =IF($K$1 = 2,30,36-DAY(A156+36-DAY(A156))) -> 31 | D156: =D155+I156-J156 -> 90000 | E156: =E155+D156*G156/B156/100-K156 -> 1888.888889 | F156: =D156*G156/B156/100 -> 12.5 | G156: 5 | V156: 1 | W156: 42185
